Workbook

Sheet 封面
A1: 2023年部门预算公开表
D4: 单位编码： | E4: 414
D5: 单位名称： | E5: 岳阳县交通运输局

Sheet 目录
B1: 部门预算公开表
B3: 一、部门预算报表
B4: 1 | C4: 收支总表
B5: 2 | C5: 收入总表
B6: 3 | C6: 支出总表
B7: 4 | C7: 支出预算分类汇总表（按政府预算经济分类）
B8: 5 | C8: 支出预算分类汇总表（按部门预算经济分类）
B9: 6 | C9: 财政拨款收支总表
B10: 7 | C10: 一般公共预算支出表
B11: 8 | C11: 一般公共预算基本支出表
B12: 9 | C12: 一般公共预算基本支出表--人员经费(工资福利支出)(按政府预算经济分类)
B13: 10 | C13: 一般公共预算基本支出表--人员经费(工资福利支出)(按部门预算经济分类)
B14: 11 | C14: 一般公共预算基本支出表--人员经费(对个人和家庭的补助)(按政府预算经济分类)
B15: 12 | C15: 一般公共预算基本支出表--人员经费(对个人和家庭的补助)（按部门预算经济分类）
B16: 13 | C16: 一般公共预算基本支出表--公用经费(商品和服务支出)（按政府预算经济分类）
B17: 14 | C17: 一般公共预算基本支出表--公用经费(商品和服务支出)(按部门预算经济分类)
B18: 15 | C18: 一般公共预算“三公”经费支出表
B19: 16 | C19: 政府性基金预算支出表
B20: 17 | C20: 政府性基金预算支出分类汇总表（按政府预算经济分类）
B21: 18 | C21: 政府性基金预算支出分类汇总表（按部门预算经济分类）
B22: 19 | C22: 国有资本经营预算表
B23: 20 | C23: 财政专户管理资金预算支出表
B24: 21 | C24: 专项资金预算汇总表
B25: 22 | C25: 项目支出绩效目标表
B26: 23 | C26: 部门整体支出绩效目标表
B27: 注：以上部门预算报表中，空表表示本部门无相关收支情况。

Sheet 1收支总表
H1: 部门公开表01
A2: 收支总表
A3: 单位：414岳阳县交通运输局 | G3: 金额单位：万元
A4: 收入 | C4: 支出
A5: 项目 | B5: 预算数 | C5: 项目（按功能分类） | D5: 预算数 | E5: 项目（按部门预算经济分类） | F5: 预算数 | G5: 项目（按政府预算经济分类） | H5: 预算数
A6: 一、一般公共预算拨款收入 | B6: =SUM(B7:B19) -> 3,887.80 | C6: （一）一般公共服务支出 | D6: ='[1]1收支总表'!$D$6+'[7]1收支总表'!$D$6 -> 439.07 | E6: 一、基本支出 | F6: =F7+F8+F9 -> 2,496.81 | G6: 一、机关工资福利支出 | H6: 604.22
A7: 经费拨款 | B7: =670.552648+'[1]1收支总表'!$B$7+'[2]1收支总表'!$B$7+'[3]1收支总表'!$B$7+'[4]1收支总表'!$B$7+'[5]1收支总表'!$B$7+'[6]1收支总表'!$B$7+'[7]1收支总表'!$B$7 -> 3,302.80 | C7: （二）外交支出 | E7: 工资福利支出 | F7: =517.92+'[1]1收支总表'!$F$7+'[2]1收支总表'!$F$7+'[3]1收支总表'!$F$7+'[4]1收支总表'!$F$7+'[5]1收支总表'!$F$7+'[6]1收支总表'!$F$7+'[8]1收支总表'!$F$7 -> 2,163.23 | G7: 二、机关商品和服务支出 | H7: 949.62
A8: 纳入一般公共预算管理的非税收入拨款 | B8: ='[1]1收支总表'!$B$8+'[3]1收支总表'!$B$8+'[5]1收支总表'!$B$8+'[6]1收支总表'!$B$8 -> 585.00 | C8: （三）国防支出 | E8: 商品和服务支出 | F8: =62.47+'[1]1收支总表'!$F$8+'[2]1收支总表'!$F$8+'[3]1收支总表'!$F$8+'[4]1收支总表'!$F$8+'[5]1收支总表'!$F$8+'[6]1收支总表'!$F$8+'[8]1收支总表'!$F$8 -> 333.58 | G8: 三、机关资本性支出（一）
A9: 行政事业性收费收入 | C9: （四）公共安全支出 | E9: 对个人和家庭的补助 | G9: 四、机关资本性支出（二）
A10: 专项收入 | C10: （五）教育支出 | E10: 二、项目支出 | F10: =SUM(F11:F20) -> 3,879.71 | G10: 五、对事业单位经常性补助 | H10: ='[1]1收支总表'!$H$10+'[2]1收支总表'!$H$10+'[3]1收支总表'!$H$10+'[4]1收支总表'!$H$10+'[5]1收支总表'!$H$10+'[6]1收支总表'!$H$10+'[8]1收支总表'!$H$10 -> 3,258.21
A11: 国有资本经营收入 | C11: （六）科学技术支出 | E11: 按项目管理的工资福利支出 | F11: =89.16+'[1]1收支总表'!$F$11+'[2]1收支总表'!$F$11+'[3]1收支总表'!$F$11+'[4]1收支总表'!$F$11+'[5]1收支总表'!$F$11+'[8]1收支总表'!$F$11 -> 727.73 | G11: 六、对事业单位资本性补助 | H11: ='[7]1收支总表'!$H$11 -> 1,379.47
A12: 国有资源（资产）有偿使用收入 | C12: （七）文化旅游体育与传媒支出 | E12: 按项目管理的商品和服务支出 | F12: =884.28796+'[1]1收支总表'!$F$12+'[2]1收支总表'!$F$12+'[3]1收支总表'!$F$12+'[4]1收支总表'!$F$12+'[5]1收支总表'!$F$12+'[8]1收支总表'!$F$12 -> 1,587.51 | G12: 七、对企业补助
A13: 罚没收入 | C13: （八）社会保障和就业支出 | D13: =50.133816+'[1]1收支总表'!$D$13+'[2]1收支总表'!$D$13+'[3]1收支总表'!$D$13+'[4]1收支总表'!$D$13+'[5]1收支总表'!$D$13+'[6]1收支总表'!$D$13+'[7]1收支总表'!$D$13 -> 213.72 | E13: 按项目管理的对个人和家庭的补助 | G13: 八、对企业资本性支出
A14: 捐赠收入 | C14: （九）社会保险基金支出 | E14: 债务利息及费用支出 | G14: 九、对个人和家庭的补助
A15: 政府住房基金收入 | C15: （十）卫生健康支出 | D15: =28.015956+'[1]1收支总表'!$D$15+'[2]1收支总表'!$D$15+'[3]1收支总表'!$D$15+'[4]1收支总表'!$D$15+'[5]1收支总表'!$D$15+'[6]1收支总表'!$D$15+'[7]1收支总表'!$D$15 -> 119.43 | E15: 资本性支出（基本建设） | G15: 十、对社会保障基金补助
A16: 其他纳入一般公共预算管理的非税收入 | C16: （十一）节能环保支出 | E16: 资本性支出 | F16: ='[7]1收支总表'!$F$16 -> 1,379.47 | G16: 十一、债务利息及费用支出
A17: 一般债券 | C17: （十二）城乡社区支出 | D17: ='[7]1收支总表'!$D$17 -> 631.10 | E17: 对企业补助（基本建设） | G17: 十二、债务还本支出
A18: 外国政府和国际组织贷款 | C18: （十三）农林水支出 | E18: 对企业补助 | G18: 十三、转移性支出
A19: 外国政府和国际组织捐赠 | C19: （十四）交通运输支出 | D19: =1440.30321+'[1]1收支总表'!$D$19+'[2]1收支总表'!$D$19+'[3]1收支总表'!$D$19+'[4]1收支总表'!$D$19+'[5]1收支总表'!$D$19+'[6]1收支总表'!$D$19+'[7]1收支总表'!$D$19 -> 4,822.35 | E19: 对社会保障基金补助 | G19: 十四、其他支出 | H19: ='[6]1收支总表'!$H$19 -> 185.00
A20: 二、政府性基金预算拨款收入 | C20: （十五）资源勘探工业信息等支出 | E20: 其他支出 | F20: ='[6]1收支总表'!$F$20 -> 185.00
A21: 三、国有资本经营预算拨款收入 | C21: （十六）商业服务业等支出 | E21: 三、事业单位经营服务支出
A22: 四、社会保障基金预算资金 | C22: （十七）金融支出
A23: 五、财政专户管理资金收入 | C23: （十八）援助其他地区支出
A24: 六、上级财政补助收入 | C24: （十九）自然资源海洋气象等支出
A25: 一般公共预算补助 | C25: （二十）住房保障支出 | D25: =35.388576+'[1]1收支总表'!$D$25+'[2]1收支总表'!$D$25+'[3]1收支总表'!$D$25+'[4]1收支总表'!$D$25+'[5]1收支总表'!$D$25+'[6]1收支总表'!$D$25+'[7]1收支总表'!$D$25 -> 150.86
A26: 政府性基金补助 | C26: （二十一）粮油物资储备支出
A27: 国有资本经营预算补助 | C27: （二十二）国有资本经营预算支出
A28: 七、事业收入 | C28: （二十三）灾害防治及应急管理支出
A29: 八、事业单位经营收入 | C29: （二十四）预备费
A30: 九、上级单位补助收入 | C30: （二十五）其他支出
A31: 十、附属单位上缴收入 | C31: （二十六）转移性支出
A32: 十一、其他收入 | C32: （二十七）债务还本支出
C33: （二十八）债务付息支出
C34: （二十九）债务发行费用支出
C35: （三十）抗疫特别国债安排的支出
A37: 本 年 收 入 合 计 | B37: =B6 -> 3,887.80 | C37: 本 年 支 出 合 计 | D37: =SUM(D6:D35) -> 6,376.52 | E37: 本 年 支 出 合 计 | F37: 6,376.52 | G37: 本 年 支 出 合 计 | H37: =SUM(H6:H19) -> 6,376.52
A38: 上年结转结余 | B38: =883.29321+'[1]1收支总表'!$B$38+'[2]1收支总表'!$B$38+'[3]1收支总表'!$B$38+'[4]1收支总表'!$B$38+'[5]1收支总表'!$B$38+'[6]1收支总表'!$B$38+'[7]1收支总表'!$B$38 -> 2,488.72 | C38: 年终结转结余 | E38: 年终结转结余 | G38: 年终结转结余
A40: 收 入 总 计 | B40: =B37+B38 -> 6,376.52 | C40: 支 出 总 计 | D40: =D37 -> 6,376.52 | E40: 支 出 总 计 | F40: =F37 -> 6,376.52 | G40: 支 出 总 计 | H40: =H37 -> 6,376.52

Sheet 2收入总表
X1: 部门公开表02
A2: 收入总表
A3: 单位：414岳阳县交通运输局 | X3: 金额单位：万元
A4: 部门（单位）代码 | B4: 部门（单位）名称 | C4: 合计 | D4: 本年收入 | S4: 上年结转结余
D5: 小计 | E5: 一般公共预算 | F5: 政府性基金预算 | G5: 国有资本经营预算 | H5: 社会保险基金预算资金 | I5: 财政专户管理资金 | J5: 上级财政补助收入 | N5: 事业收入 | O5: 事业单位经营收入 | P5: 上级单位补助收入 | Q5: 附属单位上缴收入 | R5: 其他收入 | S5: 小计 | T5: 一般公共预算 | U5: 政府性基金预算 | V5: 国有资本经营预算 | W5: 社会保险基金预算资金 | X5: 财政专户管理资金 | Y5: 单位资金
J6: 一般公共预算补助 | K6: 政府性基金补助 | L6: 国有资本经营预算补助 | M6: 社会保险基金预算资金
B7: 合计 | C7: =C8 -> 6,376.52 | D7: =D8 -> 3,887.80 | E7: =E8 -> 3,887.80 | S7: =S8 -> 2,488.72 | T7: =T8 -> 1,857.62 | U7: =U8 -> 631.10
A8: 414 | B8: 岳阳县交通运输局 | C8: =SUM(C9:C34) -> 6,376.52 | D8: =SUM(D9:D34) -> 3,887.80 | E8: =SUM(E9:E34) -> 3,887.80 | S8: =SUM(S9:S34) -> 2,488.72 | T8: =SUM(T9:T34) -> 1,857.62 | U8: =U16 -> 631.10
A9: 414001 | B9: 岳阳县交通运输局 | C9: 1,553.84 | D9: 670.55 | E9: 670.55 | S9: 883.29 | T9: 883.29
A10: 414002 | B10: 岳阳县道路运输管理所 | C10: 1,124.06 | D10: 1,058.02 | E10: 1,058.02 | S10: 66.04 | T10: 66.04
A11: 414003 | B11: 岳阳县交通工程质量和安全监督管理站 | C11: =D11+S11 -> 100.53 | D11: 99.93 | E11: 99.93 | S11: 0.60 | T11: 0.60
A12: 414004 | B12: 岳阳县港口航务管理所 | C12: 954.11 | D12: 883.01 | E12: 883.01 | S12: 71.10 | T12: 71.10
A13: 414005 | B13: 岳阳县城市公共交通执法大队 | C13: 248.66 | D13: =SUM(E13) -> 235.34 | E13: 235.34 | S13: =T13 -> 13.32 | T13: 13.32
A14: 414006 | B14: 岳阳县交通运输综合行政执法大队 | C14: 311.84 | D14: 272.67 | E14: 272.67 | S14: 39.17 | T14: 39.17
A15: 414007 | B15: 岳阳县超限治理站 | C15: 349.06 | D15: 321.56 | E15: 321.56 | S15: 27.50 | T15: 27.50
A16: 414008 | B16: 岳阳县农村公路养护中心 | C16: 1,734.42 | D16: 346.72 | E16: 346.72 | S16: =T16+U16 -> 1,387.70 | T16: 756.60 | U16: 631.10

Sheet 3支出总表
K1: 部门公开表03
A2: 支出总表
A3: 单位：414岳阳县交通运输局 | K3: 金额单位：万元
A4: 功能科目 | D4: 科目编码 | E4: 科目名称 | F4: 合计 | G4: 基本支出 | H4: 项目支出 | I4: 事业单位经营支出 | J4: 上缴上级支出 | K4: 对附属单位补助支出
A5: 类 | B5: 款 | C5: 项
D6: 合计 | F6: =F7 -> 6,376.52 | G6: =G7 -> 2,496.81 | H6: =H7 -> 3,879.71
D7: 414 | E7: 岳阳县交通运输局 | F7: 6,376.52 | G7: =G8+G21+G30+G36+G43+G51+G58+G65 -> 2,496.81 | H7: 3,879.71
D8: 414001 | E8: 岳阳县交通运输局 | F8: 1,553.84 | G8: 580.39 | H8: 973.45
A9: 208 | B9: 05 | C9: 05 | D9: 2080505 | E9: 机关事业单位基本养老保险缴费支出 | F9: 47.18 | G9: 47.18
A10: 208 | B10: 99 | C10: 99 | D10: 2089999 | E10: 其他社会保障和就业支出 | F10: 2.95 | G10: 2.95
A11: 210 | B11: 11 | C11: 01 | D11: 2101101 | E11: 行政单位医疗 | F11: 28.02 | G11: 28.02
A12: 214 | B12: 01 | C12: 01 | D12: 2140101 | E12: 行政运行 | F12: 633.26 | G12: 462.41 | H12: =143.66+27.18585 -> 170.85
A13: 221 | B13: 02 | C13: 01 | D13: 2210201 | E13: 住房公积金 | F13: 35.39 | G13: 35.39
A14: 201 | B14: 03 | C14: 99 | D14: 2010399 | E14: 其他政府办公厅（室）及相关机构事务支出 | F14: 43.54 | G14: 4.44 | H14: 39.09
A15: 212 | B15: 08 | C15: 03 | D15: 2120803 | E15: 城市建设支出 | F15: 73.92 | H15: 73.92
A16: 212 | B16: 08 | C16: 99 | D16: 2120899 | E16: 其他国有土地使用权出让收入安排的支出 | F16: 284.30 | H16: 284.30
A17: 214 | B17: 01 | C17: 23 | D17: 2140123 | E17: 航道维护 | F17: 12.73 | H17: 12.73
A18: 214 | B18: 01 | C18: 99 | D18: 2140199 | E18: 其他公路水路运输支出 | F18: 32.70 | H18: 32.70
A19: 214 | B19: 06 | C19: 02 | D19: 2140602 | E19: 车辆购置税用于农村公路建设支出 | F19: 38.86 | H19: 38.86
A20: 214 | B20: 99 | C20: 99 | D20: 2149999 | E20: 其他交通运输支出 | F20: 321.00 | H20: 321.00
D21: 414002 | E21: 岳阳县道路运输管理所 | F21: 1,124.06 | G21: 643.64 | H21: 480.42
A22: 201 | B22: 04 | C22: 01 | D22: 2010401 | E22: 行政运行 | F22: 410.80 | G22: 64.38 | H22: 346.42
A23: 201 | B23: 03 | C23: 99 | D23: 2010399 | E23: 其他政府办公厅（室）及相关机构事务支出 | F23: 20.04 | G23: 20.04
A24: 208 | B24: 05 | C24: 05 | D24: 2080505 | E24: 机关事业单位基本养老保险缴费支出 | F24: 54.06 | G24: 54.06
A25: 208 | B25: 99 | C25: 99 | D25: 2089999 | E25: 其他社会保障和就业支出 | F25: 3.38 | G25: 3.38
A26: 210 | B26: 11 | C26: 02 | D26: 2101102 | E26: 事业单位医疗 | F26: 32.10 | G26: 32.10
A27: 214 | B27: 01 | C27: 01 | D27: 2140101 | E27: 行政运行 | F27: 417.15 | G27: 417.15
A28: 214 | B28: 01 | C28: 12 | D28: 2140112 | E28: 公路运输管理 | F28: 146.00 | G28: 12.00 | H28: 134.00
A29: 221 | B29: 02 | C29: 01 | D29: 2210201 | E29: 住房公积金 | F29: 40.54 | G29: 40.54
D30: 414003 | E30: 岳阳县交通工程质量和安全监督管理站 | F30: =SUM(F31:F35) -> 100.53 | G30: =G31+G32+G33+G34+G35 -> 63.80 | H30: 36.73
A31: 208 | B31: 05 | C31: 05 | D31: 2080505 | E31: 机关事业单位基本养老保险缴费支出 | F31: 5.56 | G31: 5.56
A32: 208 | B32: 99 | C32: 99 | D32: 2089999 | E32: 其他社会保障和就业支出 | F32: 0.35 | G32: 0.35
A33: 210 | B33: 11 | C33: 02 | D33: 2101102 | E33: 事业单位医疗 | F33: 3.30 | G33: 3.30
A34: 214 | B34: 01 | C34: 01 | D34: 2140101 | E34: 行政运行 | F34: =G34+H34 -> 87.15 | G34: 50.42 | H34: 36.73
A35: 221 | B35: 02 | C35: 01 | D35: 2210201 | E35: 住房公积金 | F35: 4.17 | G35: 4.17
D36: 414004 | E36: 岳阳县港口航务管理所 | F36: =SUM(F37:F42) -> 954.11 | G36: 440.20 | H36: 513.91
A37: 208 | B37: 05 | C37: 05 | D37: 2080505 | E37: 机关事业单位基本养老保险缴费支出 | F37: 33.75 | G37: 33.75
A38: 208 | B38: 99 | C38: 99 | D38: 2089999 | E38: 其他社会保障和就业支出 | F38: 2.11 | G38: 2.11
A39: 210 | B39: 11 | C39: 02 | D39: 2101102 | E39: 事业单位医疗 | F39: 20.04 | G39: 20.04
A40: 214 | B40: 01 | C40: 01 | D40: 2140101 | E40: 行政运行 | F40: 824.28 | G40: =297.9308+12.443608 -> 310.37 | H40: =503.86+10.049593 -> 513.91
A41: 221 | B41: 02 | C41: 01 | D41: 2210201 | E41: 住房公积金 | F41: 25.32 | G41: 25.32
A42: 214 | B42: 01 | C42: 23 | D42: 2140123 | E42: 航道维护 | F42: 48.61 | G42: 48.61
D43: 414005 | E43: 岳阳县城市公共交通执法大队 | F43: =SUM(F44:F50) -> 248.66 | G43: 174.13 | H43: 74.53
A44: 208 | B44: 05 | C44: 05 | D44: 2080505 | E44: 机关事业单位基本养老保险缴费支出 | F44: =G44+H44+I44+J44+K44 -> 14.03 | G44: 14.03
A45: 208 | B45: 99 | C45: 99 | D45: 2089999 | E45: 其他社会保障和就业支出 | F45: 0.88 | G45: 0.88
A46: 210 | B46: 11 | C46: 02 | D46: 2101102 | E46: 事业单位医疗 | F46: 8.33 | G46: 8.33
A47: 214 | B47: 01 | C47: 01 | D47: 2140101 | E47: 行政运行 | F47: 201.57 | G47: 127.04 | H47: 74.53
A48: 221 | B48: 02 | C48: 01 | D48: 2210201 | E48: 住房公积金 | F48: 10.53 | G48: 10.53
A49: 214 | B49: 1 | C49: 12 | D49: 2140112 | E49: 公路运输管理 | F49: 5.67 | G49: 5.67 | H49: 0.00
A50: 201 | B50: 3 | C50: 99 | D50: 2010399 | E50: 其他政府办公厅（室）及相关机构事务支出 | F50: 7.65 | G50: 7.65
D51: 414006 | E51: 岳阳县交通运输综合行政执法大队 | F51: =G51+H51 -> 311.84 | G51: =G52+G53+G54+G55+G56+G57 -> 186.08 | H51: 125.76
A52: 208 | B52: 05 | C52: 05 | D52: 2080505 | E52: 机关事业单位基本养老保险缴费支出 | F52: 13.63 | G52: 13.63
A53: 208 | B53: 99 | C53: 99 | D53: 2089999 | E53: 其他社会保障和就业支出 | F53: 0.85 | G53: 0.85
A54: 210 | B54: 11 | C54: 02 | D54: 2101102 | E54: 事业单位医疗 | F54: 8.09 | G54: 8.09
A55: 214 | B55: 01 | C55: 12 | D55: 2140112 | E55: 公路运输管理 | F55: =G55+H55 -> 246.86 | G55: 121.10 | H55: 125.76
A56: 221 | B56: 02 | C56: 01 | D56: 2210201 | E56: 住房公积金 | F56: 10.22 | G56: 10.22
A57: 201 | B57: 03 | C57: 99 | D57: 2010399 | E57: 其他政府办公厅（室）及相关机构事务支出 | F57: 32.17 | G57: 32.17
D58: 414007 | E58: 岳阳县超限治理站 | F58: =SUM(F59:F64) -> 349.06 | G58: 164.06 | H58: 185.00
A59: 208 | B59: 05 | C59: 05 | D59: 2080505 | E59: 机关事业单位基本养老保险缴费支出 | F59: 11.86 | G59: 11.86
A60: 208 | B60: 99 | C60: 99 | D60: 2089999 | E60: 其他社会保障和就业支出 | F60: 0.74 | G60: 0.74
A61: 210 | B61: 11 | C61: 01 | D61: 2101101 | E61: 行政单位医疗 | F61: 7.04 | G61: 7.04
A62: 214 | B62: 01 | C62: 12 | D62: 2140112 | E62: 公路运输管理 | F62: 314.01 | G62: =108.0077+21 -> 129.01 | H62: 185.00
A63: 221 | B63: 02 | C63: 01 | D63: 2210201 | E63: 住房公积金 | F63: 8.90 | G63: 8.90
A64: 201 | B64: 03 | C64: 99 | D64: 2010399 | E64: 其他政府办公厅（室）及相关机构事务支出 | F64: 6.50 | G64: 6.50
D65: 414008 | E65: 岳阳县农村公路养护中心 | F65: =SUM(F66:F75) -> 1,734.42 | G65: =SUM(G66:G71) -> 244.51 | H65: =SUM(H66:H75) -> 1,489.91
A66: 208 | B66: 05 | C66: 05 | D66: 2080505 | E66: 机关事业单位基本养老保险缴费支出 | F66: 21.06 | G66: 21.06
A67: 208 | B67: 99 | C67: 99 | D67: 2089999 | E67: 其他社会保障和就业支出 | F67: 1.32 | G67: 1.32
A68: 210 | B68: 11 | C68: 02 | D68: 2101102 | E68: 事业单位医疗 | F68: 12.50 | G68: 12.50
A69: 214 | B69: 01 | C69: 01 | D69: 2140101 | E69: 行政运行 | F69: 296.06 | G69: 185.62 | H69: 110.44
A70: 221 | B70: 02 | C70: 01 | D70: 2210201 | E70: 住房公积金 | F70: 15.79 | G70: 15.79
A71: 201 | B71: 03 | C71: 99 | D71: 2010399 | E71: 其他政府办公厅（室）及相关机构事务支出 | F71: 8.23 | G71: 8.23
A72: 212 | B72: 08 | C72: 04 | D72: 2120804 | E72: 农村基础设施建设支出 | F72: 500.00 | H72: 500.00
A73: 212 | B73: 08 | C73: 99 | D73: 2120899 | E73: 其他国有土地使用权出让收入安排的支出 | F73: 131.10 | H73: 131.10
A74: 214 | B74: 06 | C74: 99 | D74: 2140699 | E74: 车辆购置税其他支出 | F74: 500.61 | H74: 500.61
A75: 214 | B75: 01 | C75: 06 | D75: 2140106 | E75: 公路养护 | F75: 247.76 | H75: 247.76

Sheet 4支出分类(政府预算)
S1: 部门公开表04
A2: 支出预算分类汇总表（按政府预算经济分类）
A3: 单位：414岳阳县交通运输局 | S3: 金额单位：万元
A4: 功能科目 | D4: 单位代码 | E4: 单位名称（功能科目） | F4: 总 计 | G4: 机关工资福利支出 | H4: 机关商品和服务支出 | I4: 机关资本性支出(一) | J4: 机关资本性支出(二) | K4: 对事业单位经常性补助 | L4: 对事业单位资本性补助 | M4: 对企业补助 | N4: 对企业资本性支出 | O4: 对个人和家庭的补助 | P4: 对社会保障基金补助 | Q4: 债务利息及费用支出 | R4: 债务还本支出 | S4: 转移性支出 | T4: 其他支出
A5: 类 | B5: 款 | C5: 项
E6: 合计 | F6: =F7 -> 6,376.52 | G6: =G7 -> 577.08 | H6: 976.77 | I6: 0.00 | J6: 0.00 | K6: 3,258.21 | L6: 1,379.47 | M6: 0.00 | N6: 0.00 | O6: 0.00 | P6: 0.00 | Q6: 0.00 | R6: 0.00 | S6: 0.00 | T6: 185.00
D7: 414 | E7: 岳阳县交通运输局 | F7: =F8+F21+F30+F36+F43+F51+F58+F65 -> 6,376.52 | G7: =G8+G21+G30+G36+G43+G51+G58+G65 -> 577.08 | H7: 976.77 | I7: 0.00 | J7: 0.00 | K7: 3,258.21 | L7: 1,379.47 | M7: 0.00 | N7: 0.00 | O7: 0.00 | P7: 0.00 | Q7: 0.00 | R7: 0.00 | S7: 0.00 | T7: 185.00
D8: 414001 | E8: 岳阳县交通运输局 | F8: 1,553.84 | G8: 577.08 | H8: 976.77
A9: 214 | B9: 01 | C9: 01 | D9: 414001 | E9: 行政运行 | F9: 633.26 | G9: 459.10 | H9: 174.16
A10: 208 | B10: 05 | C10: 05 | D10: 414001 | E10: 机关事业单位基本养老保险缴费支出 | F10: 47.18 | G10: 47.18
A11: 208 | B11: 99 | C11: 99 | D11: 414001 | E11: 其他社会保障和就业支出 | F11: 2.95 | G11: 2.95
A12: 210 | B12: 11 | C12: 01 | D12: 414001 | E12: 行政单位医疗 | F12: 28.02 | G12: 28.02
A13: 221 | B13: 02 | C13: 01 | D13: 414001 | E13: 住房公积金 | F13: 35.39 | G13: 35.39
A14: 201 | B14: 03 | C14: 99 | D14: 414001 | E14: 其他政府办公厅（室）及相关机构事务支出 | F14: 43.54 | G14: 4.44 | H14: 39.10
A15: 212 | B15: 08 | C15: 03 | D15: 414001 | E15: 城市建设支出 | F15: 73.92 | H15: 73.92
A16: 212 | B16: 08 | C16: 99 | D16: 414001 | E16: 其他国有土地使用权出让收入安排的支出 | F16: 284.30 | H16: 284.30
A17: 214 | B17: 01 | C17: 23 | D17: 414001 | E17: 航道维护 | F17: 12.73 | H17: 12.73
A18: 214 | B18: 01 | C18: 99 | D18: 414001 | E18: 其他公路水路运输支出 | F18: 32.70 | H18: 32.70
A19: 214 | B19: 06 | C19: 02 | D19: 414001 | E19: 车辆购置税用于农村公路建设支出 | F19: 38.86 | H19: 38.86
A20: 214 | B20: 99 | C20: 99 | D20: 414001 | E20: 其他交通运输支出 | F20: 321.00 | H20: 321.00
D21: 414002 | E21: 岳阳县道路运输管理所 | F21: 1,124.06 | K21: 1,124.06
A22: 214 | B22: 01 | C22: 01 | D22: 414002 | E22: 行政运行 | F22: 417.15 | K22: 417.15
A23: 201 | B23: 03 | C23: 99 | D23: 414002 | E23: 其他政府办公厅（室）及相关机构事务支出 | F23: 20.04 | K23: 20.04
A24: 208 | B24: 05 | C24: 05 | D24: 414002 | E24: 机关事业单位基本养老保险缴费支出 | F24: 54.06 | K24: 54.06
A25: 208 | B25: 99 | C25: 99 | D25: 414002 | E25: 其他社会保障和就业支出 | F25: 3.38 | K25: 3.38
A26: 210 | B26: 11 | C26: 02 | D26: 414002 | E26: 事业单位医疗 | F26: 32.10 | K26: 32.10
A27: 221 | B27: 02 | C27: 01 | D27: 414002 | E27: 住房公积金 | F27: 40.54 | K27: 40.54
A28: 201 | B28: 04 | C28: 01 | D28: 414002 | E28: 行政运行 | F28: 410.80 | K28: 410.80
A29: 214 | B29: 01 | C29: 12 | D29: 414002 | E29: 公路运输管理 | F29: 146.00 | K29: 146.00
D30: 414003 | E30: 岳阳县交通工程质量和安全监督管理站 | F30: 100.53 | K30: 100.53
A31: 214 | B31: 01 | C31: 01 | D31: 414003 | E31: 行政运行 | F31: 87.15 | K31: 87.15
A32: 208 | B32: 05 | C32: 05 | D32: 414003 | E32: 机关事业单位基本养老保险缴费支出 | F32: 5.56 | K32: 5.56
A33: 208 | B33: 99 | C33: 99 | D33: 414003 | E33: 其他社会保障和就业支出 | F33: 0.35 | K33: 0.35
A34: 210 | B34: 11 | C34: 02 | D34: 414003 | E34: 事业单位医疗 | F34: 3.30 | K34: 3.30
A35: 221 | B35: 02 | C35: 01 | D35: 414003 | E35: 住房公积金 | F35: 4.17 | K35: 4.17
D36: 414004 | E36: 岳阳县港口航务管理所 | F36: =K36 -> 954.11 | K36: =SUM(K37:K42) -> 954.11
A37: 214 | B37: 01 | C37: 01 | D37: 414004 | E37: 行政运行 | F37: 824.28 | K37: =801.7908+22.493201 -> 824.28
A38: 208 | B38: 05 | C38: 05 | D38: 414004 | E38: 机关事业单位基本养老保险缴费支出 | F38: 33.75 | K38: 33.75
A39: 208 | B39: 99 | C39: 99 | D39: 414004 | E39: 其他社会保障和就业支出 | F39: 2.11 | K39: 2.11
A40: 210 | B40: 11 | C40: 02 | D40: 414004 | E40: 事业单位医疗 | F40: 20.04 | K40: 20.04
A41: 221 | B41: 02 | C41: 01 | D41: 414004 | E41: 住房公积金 | F41: 25.32 | K41: 25.32
A42: 214 | B42: 01 | C42: 23 | D42: 414004 | E42: 航道维护 | F42: 48.61 | K42: 48.61
D43: 414005 | E43: 岳阳县城市公共交通执法大队 | F43: =SUM(F44:F50) -> 248.66 | K43: =SUM(K44:K50) -> 248.66
A44: 214 | B44: 01 | C44: 01 | D44: 414005 | E44: 行政运行 | F44: =K44 -> 201.57 | K44: 201.57
A45: 208 | B45: 05 | C45: 05 | D45: 414005 | E45: 机关事业单位基本养老保险缴费支出 | F45: 14.03 | K45: 14.03
A46: 208 | B46: 99 | C46: 99 | D46: 414005 | E46: 其他社会保障和就业支出 | F46: 0.88 | K46: 0.88
A47: 210 | B47: 11 | C47: 02 | D47: 414005 | E47: 事业单位医疗 | F47: 8.33 | K47: 8.33
A48: 221 | B48: 02 | C48: 01 | D48: 414005 | E48: 住房公积金 | F48: 10.53 | K48: 10.53
A49: 214 | B49: 01 | C49: 12 | D49: 414005 | E49: 公路运输管理 | F49: 5.67 | K49: 5.67
A50: 201 | B50: 03 | C50: 99 | D50: 414005 | E50: 其他政府办公厅（室）及相关机构事务支出 | F50: 7.65 | K50: 7.65
D51: 414006 | E51: 岳阳县交通运输综合行政执法大队 | F51: 311.84 | K51: =F51 -> 311.84
A52: 214 | B52: 01 | C52: 12 | D52: 414006 | E52: 公路运输管理 | F52: 246.86 | K52: 246.86
A53: 208 | B53: 05 | C53: 05 | D53: 414006 | E53: 机关事业单位基本养老保险缴费支出 | F53: 13.63 | K53: 13.63
A54: 208 | B54: 99 | C54: 99 | D54: 414006 | E54: 其他社会保障和就业支出 | F54: 0.85 | K54: 0.85
A55: 210 | B55: 11 | C55: 02 | D55: 414006 | E55: 事业单位医疗 | F55: 8.09 | K55: 8.09
A56: 221 | B56: 02 | C56: 01 | D56: 414006 | E56: 住房公积金 | F56: 10.22 | K56: 10.22
A57: 201 | B57: 03 | C57: 99 | D57: 2010399 | E57: 其他政府办公厅（室）及相关机构事务支出 | F57: 32.17 | K57: 32.17
D58: 414007 | E58: 岳阳县超限治理站 | F58: =SUM(F59:F64) -> 349.06 | K58: =SUM(K59:K64) -> 164.06 | T58: 185.00
A59: 214 | B59: 01 | C59: 12 | D59: 414007 | E59: 公路运输管理 | F59: =K59+T59 -> 314.01 | K59: =108.0077+21 -> 129.01 | T59: 185.00
A60: 208 | B60: 05 | C60: 05 | D60: 414007 | E60: 机关事业单位基本养老保险缴费支出 | F60: 11.86 | K60: 11.86
A61: 208 | B61: 99 | C61: 99 | D61: 414007 | E61: 其他社会保障和就业支出 | F61: 0.74 | K61: 0.74
A62: 210 | B62: 11 | C62: 01 | D62: 414007 | E62: 行政单位医疗 | F62: 7.04 | K62: 7.04
A63: 221 | B63: 02 | C63: 01 | D63: 414007 | E63: 住房公积金 | F63: 8.90 | K63: 8.90
A64: 201 | B64: 03 | C64: 99 | D64: 414007 | E64: 其他政府办公厅（室）及相关机构事务支出 | F64: =K64 -> 6.50 | K64: 6.50
D65: 414008 | E65: 岳阳县农村公路养护中心 | F65: 1,734.42 | K65: 354.95 | L65: 1,379.47
A66: 214 | B66: 01 | C66: 01 | D66: 414008 | E66: 行政运行 | F66: 296.06 | K66: 296.06
A67: 208 | B67: 05 | C67: 05 | D67: 414008 | E67: 机关事业单位基本养老保险缴费支出 | F67: 21.06 | K67: 21.06
A68: 208 | B68: 99 | C68: 99 | D68: 414008 | E68: 其他社会保障和就业支出 | F68: 1.32 | K68: 1.32
A69: 210 | B69: 11 | C69: 02 | D69: 414008 | E69: 事业单位医疗 | F69: 12.50 | K69: 12.50
A70: 221 | B70: 02 | C70: 01 | D70: 414008 | E70: 住房公积金 | F70: 15.79 | K70: 15.79
A71: 201 | B71: 03 | C71: 99 | D71: 414008 | E71: 其他政府办公厅（室）及相关机构事务支出 | F71: 8.23 | K71: 8.23
A72: 212 | B72: 08 | C72: 04 | D72: 414008 | E72: 农村基础设施建设支出 | F72: 500.00 | L72: 500.00
A73: 212 | B73: 08 | C73: 99 | D73: 414008 | E73: 其他国有土地使用权出让收入安排的支出 | F73: 131.10 | L73: 131.10
A74: 214 | B74: 06 | C74: 99 | D74: 414008 | E74: 车辆购置税其他支出 | F74: 500.61 | L74: 500.61
A75: 214 | B75: 01 | C75: 06 | D75: 414008 | E75: 公路养护 | F75: 247.76 | L75: 247.76

Sheet 5支出分类（部门预算）
T1: 部门公开表05
A2: 支出预算分类汇总表（按部门预算经济分类）
A3: 单位：414岳阳县交通运输局 | T3: 金额单位：万元
A4: 功能科目 | D4: 单位代码 | E4: 单位名称（功能科目） | F4: 总 计 | G4: 基本支出 | K4: 项目支出
A5: 类 | B5: 款 | C5: 项 | G5: 合计 | H5: 工资福利支出 | I5: 一般商品和服务支出 | J5: 对个人和家庭的补助 | K5: 合计 | L5: 按项目管理的工资福利支出 | M5: 按项目管理的商品和服务支出 | N5: 按项目管理的对个人和家庭的补助 | O5: 债务利息及费用支出 | P5: 资本性支出（基本建设） | Q5: 资本性支出 | R5: 对企业补助（基本建设） | S5: 对企业补助 | T5: 对社会保障基金补助 | U5: 其他支出
E6: 合计 | F6: =F7 -> 6,376.52 | G6: =G7 -> 2,496.81 | H6: 2,163.23 | I6: 333.58 | J6: 0.00 | K6: 3,879.71 | L6: 727.73 | M6: 1,587.51 | N6: 0.00 | O6: 0.00 | P6: 0.00 | Q6: 1,379.47 | R6: 0.00 | S6: 0.00 | T6: 0.00 | U6: 185.00
D7: 414 | E7: 岳阳县交通运输局 | F7: =F8+F21+F30+F36+F43+F51+F58+F65 -> 6,376.52 | G7: =G8+G21+G30+G36+G43+G51+G58+G65 -> 2,496.81 | H7: 2,163.23 | I7: 333.58 | J7: 0.00 | K7: 3,879.71 | L7: 727.73 | M7: 1,587.51 | N7: 0.00 | O7: 0.00 | P7: 0.00 | Q7: 1,379.47 | R7: 0.00 | S7: 0.00 | T7: 0.00 | U7: 185.00
D8: 414001 | E8: 岳阳县交通运输局 | F8: 1,553.84 | G8: 580.39 | H8: 517.92 | I8: 62.47 | J8: 0.00 | K8: 973.45 | L8: 89.16 | M8: 884.29
A9: 214 | B9: 01 | C9: 01 | D9: 414001 | E9: 行政运行 | F9: 633.26 | G9: 462.41 | H9: 399.94 | I9: 62.47 | K9: 170.85 | L9: 89.16 | M9: 81.69
A10: 208 | B10: 05 | C10: 05 | D10: 414001 | E10: 机关事业单位基本养老保险缴费支出 | F10: 47.18 | G10: 47.18 | H10: 47.18
A11: 208 | B11: 99 | C11: 99 | D11: 414001 | E11: 其他社会保障和就业支出 | F11: 2.95 | G11: 2.95 | H11: 2.95
A12: 210 | B12: 11 | C12: 01 | D12: 414001 | E12: 行政单位医疗 | F12: 28.02 | G12: 28.02 | H12: 28.02
A13: 221 | B13: 02 | C13: 01 | D13: 414001 | E13: 住房公积金 | F13: 35.39 | G13: 35.39 | H13: 35.39
A14: 201 | B14: 03 | C14: 99 | D14: 414001 | E14: 其他政府办公厅（室）及相关机构事务支出 | F14: 43.54 | G14: 4.44 | H14: 4.44 | K14: 39.09 | M14: 39.10
A15: 212 | B15: 08 | C15: 03 | D15: 414001 | E15: 城市建设支出 | F15: 73.92 | K15: 73.92 | M15: 73.92
A16: 212 | B16: 08 | C16: 99 | D16: 414001 | E16: 其他国有土地使用权出让收入安排的支出 | F16: 284.30 | K16: 284.30 | M16: 284.30
A17: 214 | B17: 01 | C17: 23 | D17: 414001 | E17: 航道维护 | F17: 12.73 | K17: 12.73 | M17: 12.73
A18: 214 | B18: 01 | C18: 99 | D18: 414001 | E18: 其他公路水路运输支出 | F18: 32.70 | K18: 32.70 | M18: 32.70
A19: 214 | B19: 06 | C19: 02 | D19: 414001 | E19: 车辆购置税用于农村公路建设支出 | F19: 38.86 | K19: 38.86 | M19: 38.86
A20: 214 | B20: 99 | C20: 99 | D20: 414001 | E20: 其他交通运输支出 | F20: 321.00 | K20: 321.00 | M20: 321.00
D21: 414002 | E21: 岳阳县道路运输管理所 | F21: 1,124.06 | G21: 643.64 | H21: 579.26 | I21: 64.38 | J21: 0.00 | K21: 480.42 | L21: 313.12 | M21: 167.30
A22: 214 | B22: 01 | C22: 01 | D22: 414002 | E22: 行政运行 | F22: 417.15 | G22: 417.15 | H22: 417.15
A23: 201 | B23: 03 | C23: 99 | D23: 414002 | E23: 其他政府办公厅（室）及相关机构事务支出 | F23: 20.04 | G23: 20.04 | H23: 20.04
A24: 208 | B24: 05 | C24: 05 | D24: 414002 | E24: 机关事业单位基本养老保险缴费支出 | F24: 54.06 | G24: 54.06 | H24: 54.06
A25: 208 | B25: 99 | C25: 99 | D25: 414002 | E25: 其他社会保障和就业支出 | F25: 3.38 | G25: 3.38 | H25: 3.38
A26: 210 | B26: 11 | C26: 02 | D26: 414002 | E26: 事业单位医疗 | F26: 32.10 | G26: 32.10 | H26: 32.10
A27: 221 | B27: 02 | C27: 01 | D27: 414002 | E27: 住房公积金 | F27: 40.54 | G27: 40.54 | H27: 40.54
A28: 201 | B28: 04 | C28: 01 | D28: 414002 | E28: 行政运行 | F28: 410.80 | G28: 64.38 | I28: 64.38 | K28: 346.42 | L28: 313.12 | M28: 33.30
A29: 214 | B29: 01 | C29: 12 | D29: 414002 | E29: 公路运输管理 | F29: 146.00 | H29: 12.00 | K29: 134.00 | M29: 134.00
D30: 414003 | E30: 岳阳县交通工程质量和安全监督管理站 | F30: 100.53 | G30: 63.80 | H30: 56.60 | I30: 7.20 | J30: 0.00 | K30: 36.73 | L30: 33.13 | M30: 3.60
A31: 214 | B31: 01 | C31: 01 | D31: 414003 | E31: 行政运行 | F31: 87.15 | G31: 50.42 | H31: 43.22 | I31: 7.20 | K31: 36.73 | L31: 33.13 | M31: 3.60
A32: 208 | B32: 05 | C32: 05 | D32: 414003 | E32: 机关事业单位基本养老保险缴费支出 | F32: 5.56 | G32: 5.56 | H32: 5.56
A33: 208 | B33: 99 | C33: 99 | D33: 414003 | E33: 其他社会保障和就业支出 | F33: 0.35 | G33: 0.35 | H33: 0.35
A34: 210 | B34: 11 | C34: 02 | D34: 414003 | E34: 事业单位医疗 | F34: 3.30 | G34: 3.30 | H34: 3.30
A35: 221 | B35: 02 | C35: 01 | D35: 414003 | E35: 住房公积金 | F35: 4.17 | G35: 4.17 | H35: 4.17
D36: 414004 | E36: 岳阳县港口航务管理所 | F36: =G36+K36 -> 954.11 | G36: =H36+I36+J36 -> 440.20 | H36: 338.71 | I36: =SUM(I37:I42) -> 101.49 | J36: 0.00 | K36: =L36+M36 -> 513.91 | L36: 116.79 | M36: =SUM(M37:M42) -> 397.12
A37: 214 | B37: 01 | C37: 01 | D37: 414004 | E37: 行政运行 | F37: 824.28 | G37: 310.37 | H37: 257.49 | I37: =40.44+12.443608 -> 52.88 | K37: =L37+M37 -> 513.91 | L37: 116.79 | M37: =387.07+10.049593 -> 397.12
A38: 208 | B38: 05 | C38: 05 | D38: 414004 | E38: 机关事业单位基本养老保险缴费支出 | F38: 33.75 | G38: 33.75 | H38: 33.75
A39: 208 | B39: 99 | C39: 99 | D39: 414004 | E39: 其他社会保障和就业支出 | F39: 2.11 | G39: 2.11 | H39: 2.11
A40: 210 | B40: 11 | C40: 02 | D40: 414004 | E40: 事业单位医疗 | F40: 20.04 | G40: 20.04 | H40: 20.04
A41: 221 | B41: 02 | C41: 01 | D41: 414004 | E41: 住房公积金 | F41: 25.32 | G41: 25.32 | H41: 25.32
A42: 214 | B42: 01 | C42: 23 | D42: 414004 | E42: 航道维护 | F42: 48.61 | G42: 48.61 | I42: 48.61
D43: 414005 | E43: 岳阳县城市公共交通执法大队 | F43: =SUM(F44:F50) -> 248.66 | G43: 174.13 | H43: 155.41 | I43: 18.72 | J43: 0.00 | K43: 74.53 | L43: 43.73 | M43: 30.80
A44: 214 | B44: 01 | C44: 01 | D44: 414005 | E44: 行政运行 | F44: =G44+K44 -> 201.57 | G44: =H44+I44+J44 -> 127.04 | H44: 108.32 | I44: 18.72 | K44: =L44+M44 -> 74.53 | L44: 43.73 | M44: 30.80
A45: 208 | B45: 05 | C45: 05 | D45: 414005 | E45: 机关事业单位基本养老保险缴费支出 | F45: 14.03 | G45: 14.03 | H45: 14.03 | K45: 0.00
A46: 208 | B46: 99 | C46: 99 | D46: 414005 | E46: 其他社会保障和就业支出 | F46: 0.88 | G46: 0.88 | H46: 0.88 | K46: 0.00
A47: 210 | B47: 11 | C47: 02 | D47: 414005 | E47: 事业单位医疗 | F47: 8.33 | G47: 8.33 | H47: 8.33 | K47: 0.00
A48: 221 | B48: 02 | C48: 01 | D48: 414005 | E48: 住房公积金 | F48: 10.53 | G48: 10.53 | H48: 10.53 | K48: 0.00
A49: 214 | B49: 1 | C49: 12 | D49: 414005 | E49: 公路运输管理 | F49: 5.67 | G49: 5.67 | H49: 5.67 | K49: 0.00 | L49: 0.00
A50: 201 | B50: 3 | C50: 99 | D50: 414005 | E50: 其他政府办公厅（室）及相关机构事务支出 | F50: 7.65 | G50: 7.65 | H50: 7.65 | K50: 0.00
D51: 414006 | E51: 岳阳县交通运输综合行政执法大队 | F51: 311.84 | G51: 186.08 | H51: 169.22 | I51: 16.86 | J51: 0.00 | K51: 125.76 | L51: 32.16 | M51: 93.60
A52: 214 | B52: 01 | C52: 12 | D52: 414006 | E52: 公路运输管理 | F52: 246.86 | G52: 121.10 | H52: 104.24 | I52: 16.86 | K52: 125.76 | L52: 32.16 | M52: 93.60
A53: 208 | B53: 05 | C53: 05 | D53: 414006 | E53: 机关事业单位基本养老保险缴费支出 | F53: 13.63 | G53: 13.63 | H53: 13.63
A54: 208 | B54: 99 | C54: 99 | D54: 414006 | E54: 其他社会保障和就业支出 | F54: 0.85 | G54: 0.85 | H54: 0.85
A55: 210 | B55: 11 | C55: 02 | D55: 414006 | E55: 事业单位医疗 | F55: 8.09 | G55: 8.09 | H55: 8.09
A56: 221 | B56: 02 | C56: 01 | D56: 414006 | E56: 住房公积金 | F56: 10.22 | G56: 10.22 | H56: 10.22
A57: 201 | B57: 03 | C57: 99 | D57: 2010399 | E57: 其他政府办公厅（室）及相关机构事务支出 | F57: 32.17 | G57: 32.17 | H57: 32.17
D58: 414007 | E58: 岳阳县超限治理站 | F58: =SUM(F59:F64) -> 349.06 | G58: 164.06 | H58: 126.68 | I58: 37.38 | J58: 0.00 | K58: 185.00 | L58: 0.00 | U58: 185.00
A59: 214 | B59: 01 | C59: 12 | D59: 414007 | E59: 公路运输管理 | F59: =G59+K59 -> 314.01 | G59: =H59+I59+J59 -> 129.01 | H59: 91.63 | I59: =16.38+21 -> 37.38 | K59: 185.00 | U59: 185.00
A60: 208 | B60: 05 | C60: 05 | D60: 414007 | E60: 机关事业单位基本养老保险缴费支出 | F60: 11.86 | G60: 11.86 | H60: 11.86
A61: 208 | B61: 99 | C61: 99 | D61: 414007 | E61: 其他社会保障和就业支出 | F61: 0.74 | G61: 0.74 | H61: 0.74
A62: 210 | B62: 11 | C62: 01 | D62: 414007 | E62: 行政单位医疗 | F62: 7.04 | G62: 7.04 | H62: 7.04
A63: 221 | B63: 02 | C63: 01 | D63: 414007 | E63: 住房公积金 | F63: 8.90 | G63: 8.90 | H63: 8.90
A64: 201 | B64: 03 | C64: 99 | D64: 414007 | E64: 其他政府办公厅（室）及相关机构事务支出 | F64: 6.50 | G64: 6.50 | H64: 6.50
D65: 414008 | E65: 岳阳县农村公路养护中心 | F65: 1,734.42 | G65: 244.51 | H65: 219.43 | I65: 25.08 | J65: 0.00 | K65: 1,489.91 | L65: 99.64 | M65: 10.80 | Q65: 1,379.47
A66: 214 | B66: 01 | C66: 01 | D66: 414008 | E66: 行政运行 | F66: 296.06 | G66: 185.62 | H66: 160.54 | I66: 25.08 | K66: 110.44 | L66: 99.64 | M66: 10.80
A67: 208 | B67: 05 | C67: 05 | D67: 414008 | E67: 机关事业单位基本养老保险缴费支出 | F67: 21.06 | G67: 21.06 | H67: 21.06
A68: 208 | B68: 99 | C68: 99 | D68: 414008 | E68: 其他社会保障和就业支出 | F68: 1.32 | G68: 1.32 | H68: 1.32
A69: 210 | B69: 11 | C69: 02 | D69: 414008 | E69: 事业单位医疗 | F69: 12.50 | G69: 12.50 | H69: 12.50
A70: 221 | B70: 02 | C70: 01 | D70: 414008 | E70: 住房公积金 | F70: 15.79 | G70: 15.79 | H70: 15.79
A71: 201 | B71: 03 | C71: 99 | D71: 414008 | E71: 其他政府办公厅（室）及相关机构事务支出 | F71: 8.23 | G71: 8.23 | H71: 8.23
A72: 212 | B72: 08 | C72: 04 | D72: 414008 | E72: 农村基础设施建设支出 | F72: 500.00 | K72: 500.00 | Q72: 500.00
A73: 212 | B73: 08 | C73: 99 | D73: 414008 | E73: 其他国有土地使用权出让收入安排的支出 | F73: 131.10 | K73: 131.10 | Q73: 131.10
A74: 214 | B74: 06 | C74: 99 | D74: 414008 | E74: 车辆购置税其他支出 | F74: 500.61 | K74: 500.61 | Q74: 500.61
A75: 214 | B75: 01 | C75: 06 | D75: 414008 | E75: 公路养护 | F75: 247.76 | K75: 247.76 | Q75: 247.76

Sheet 6财政拨款收支总表
D1: 部门公开表06
A2: 财政拨款收支总表
A3: 单位：414岳阳县交通运输局 | D3: 金额单位：万元
A4: 收入 | C4: 支出
A5: 项目 | B5: 预算数 | C5: 项目 | D5: 预算数
A6: 一、本年收入 | B6: =B7+B10+B11+B12 -> 3,887.81 | C6: 一、本年支出 | D6: =SUM(D7:D36) -> 6,376.52
A7: （一）一般公共预算拨款 | B7: =B8+B9 -> 3,887.81 | C7: （一）一般公共服务支出 | D7: ='[1]6财政拨款收支总表'!$D$7+'[8]6财政拨款收支总表'!$D$7 -> 439.07
A8: 经费拨款 | B8: =670.552648+'[1]6财政拨款收支总表'!$B$8+'[2]6财政拨款收支总表'!$B$8+'[3]6财政拨款收支总表'!$B$8+'[4]6财政拨款收支总表'!$B$8+'[5]6财政拨款收支总表'!$B$8+'[6]6财政拨款收支总表'!$B$8+'[8]6财政拨款收支总表'!$B$8 -> 3,302.81 | C8: （二）外交支出
A9: 纳入一般公共预算管理的非税收入拨款 | B9: ='[1]6财政拨款收支总表'!$B$9+'[3]6财政拨款收支总表'!$B$9+'[5]6财政拨款收支总表'!$B$9+'[6]6财政拨款收支总表'!$B$9 -> 585.00 | C9: （三）国防支出
A10: （二）政府性基金预算拨款 | C10: （四）公共安全支出
A11: （三）国有资本经营预算拨款 | C11: （五）教育支出
A12: （四）社会保险基金预算资金 | C12: （六）科学技术支出
A13: 二、上年结转 | B13: =SUM(B14:B17) -> 2,488.72 | C13: （七）文化旅游体育与传媒支出
A14: （一）一般公共预算拨款 | B14: =883.29+'[1]6财政拨款收支总表'!$B$14+'[2]6财政拨款收支总表'!$B$14+'[3]6财政拨款收支总表'!$B$14+'[4]6财政拨款收支总表'!$B$14+'[5]6财政拨款收支总表'!$B$14+'[6]6财政拨款收支总表'!$B$14+'[8]6财政拨款收支总表'!$B$14 -> 1,857.62 | C14: （八）社会保障和就业支出 | D14: =50.133816+'[1]6财政拨款收支总表'!$D$14+'[2]6财政拨款收支总表'!$D$14+'[3]6财政拨款收支总表'!$D$14+'[4]6财政拨款收支总表'!$D$14+'[5]6财政拨款收支总表'!$D$14+'[6]6财政拨款收支总表'!$D$14+'[8]6财政拨款收支总表'!$D$14 -> 213.72
A15: （二）政府性基金预算拨款 | B15: ='[8]6财政拨款收支总表'!$B$15 -> 631.10 | C15: （九）社会保险基金支出
A16: （三）国有资本经营预算拨款 | C16: （十）卫生健康支出 | D16: =28.015956+'[1]6财政拨款收支总表'!$D$16+'[2]6财政拨款收支总表'!$D$16+'[3]6财政拨款收支总表'!$D$16+'[4]6财政拨款收支总表'!$D$16+'[5]6财政拨款收支总表'!$D$16+'[6]6财政拨款收支总表'!$D$16+'[8]6财政拨款收支总表'!$D$16 -> 119.43
A17: （四）社会保险基金预算资金 | C17: （十一）节能环保支出
C18: （十二）城乡社区支出 | D18: ='[8]6财政拨款收支总表'!$D$18 -> 631.10
C19: （十三）农林水支出
C20: （十四）交通运输支出 | D20: =1440.3+'[1]6财政拨款收支总表'!$D$20+'[2]6财政拨款收支总表'!$D$20+'[3]6财政拨款收支总表'!$D$20+'[4]6财政拨款收支总表'!$D$20+'[5]6财政拨款收支总表'!$D$20+'[6]6财政拨款收支总表'!$D$20+'[8]6财政拨款收支总表'!$D$20 -> 4,822.34
C21: （十五）资源勘探工业信息等支出
C22: （十六）商业服务业等支出
C23: （十七）金融支出
C24: （十八）援助其他地区支出
C25: （十九）自然资源海洋气象等支出
C26: （二十）住房保障支出 | D26: =35.388576+'[1]6财政拨款收支总表'!$D$26+'[2]6财政拨款收支总表'!$D$26+'[3]6财政拨款收支总表'!$D$26+'[4]6财政拨款收支总表'!$D$26+'[5]6财政拨款收支总表'!$D$26+'[6]6财政拨款收支总表'!$D$26+'[8]6财政拨款收支总表'!$D$26 -> 150.86
C27: （二十一）粮油物资储备支出
C28: （二十二）国有资本经营预算支出
C29: （二十三）灾害防治及应急管理支出
C30: （二十四）预备费
C31: （二十五）其他支出
C32: （二十六）转移性支出
C33: （二十七）债务还本支出
C34: （二十八）债务付息支出
C35: （二十九）债务发行费用支出
C36: （三十）抗疫特别国债安排的支出
C38: 二、年终结转结余
A40: 收 入 总 计 | B40: =B6+B13 -> 6,376.52 | C40: 支 出 总 计 | D40: =D6 -> 6,376.52

Sheet 7一般公共预算支出表
K1: 部门公开表07
A2: 一般公共预算支出表
A3: 单位：414岳阳县交通运输局 | J3: 金额单位：万元
A4: 功能科目 | D4: 科目编码 | E4: 科目名称 | F4: 合计 | G4: 基本支出 | K4: 项目支出
G5: 小计 | H5: 人员经费 | J5: 公用经费
A6: 类 | B6: 款 | C6: 项 | H6: 工资福利支出 | I6: 对个人和家庭的补助
E7: 合计 | F7: =F8 -> 6,376.52 | G7: 2,496.81 | H7: 2,163.23 | I7: 333.58 | J7: 0.00 | K7: 3,879.71
D8: 414 | E8: 岳阳县交通运输局 | F8: =F9+F22+F31+F37+F44+F52+F59+F66 -> 6,376.52 | G8: 2,496.81 | H8: 2,163.23 | I8: 333.58 | J8: 0.00 | K8: 3,879.71
D9: 414001 | E9: 岳阳县交通运输局 | F9: 1,553.84 | G9: 580.39 | H9: 517.92 | I9: 62.47 | J9: 0.00 | K9: 973.45
A10: 208 | B10: 05 | C10: 05 | D10: 2080505 | E10: 机关事业单位基本养老保险缴费支出 | F10: 633.26 | G10: 462.41 | H10: 399.94 | I10: 62.47 | K10: 170.85
A11: 208 | B11: 99 | C11: 99 | D11: 2089999 | E11: 其他社会保障和就业支出 | F11: 47.18 | G11: 47.18 | H11: 47.18
A12: 210 | B12: 11 | C12: 01 | D12: 2101101 | E12: 行政单位医疗 | F12: 2.95 | G12: 2.95 | H12: 2.95
A13: 214 | B13: 01 | C13: 01 | D13: 2140101 | E13: 行政运行 | F13: 28.02 | G13: 28.02 | H13: 28.02
A14: 221 | B14: 02 | C14: 01 | D14: 2210201 | E14: 住房公积金 | F14: 35.39 | G14: 35.39 | H14: 35.39
A15: 201 | B15: 03 | C15: 99 | D15: 2010399 | E15: 其他政府办公厅（室）及相关机构事务支出 | F15: 43.54 | G15: 4.44 | H15: 4.44 | K15: 39.09
A16: 212 | B16: 08 | C16: 03 | D16: 2120803 | E16: 城市建设支出 | F16: 73.92 | K16: 73.92
A17: 212 | B17: 08 | C17: 99 | D17: 2120899 | E17: 其他国有土地使用权出让收入安排的支出 | F17: 284.30 | K17: 284.30
A18: 214 | B18: 01 | C18: 23 | D18: 2140123 | E18: 航道维护 | F18: 12.73 | K18: 12.73
A19: 214 | B19: 01 | C19: 99 | D19: 2140199 | E19: 其他公路水路运输支出 | F19: 32.70 | K19: 32.70
A20: 214 | B20: 06 | C20: 02 | D20: 2140602 | E20: 车辆购置税用于农村公路建设支出 | F20: 38.86 | K20: 38.86
A21: 214 | B21: 99 | C21: 99 | D21: 2149999 | E21: 其他交通运输支出 | F21: 321.00 | K21: 321.00
D22: 414002 | E22: 岳阳县道路运输管理所 | F22: 1,124.06 | G22: 643.64 | H22: 579.26 | I22: 64.38 | J22: 0.00 | K22: 480.42
A23: 201 | B23: 04 | C23: 01 | D23: 2010401 | E23: 行政运行 | F23: 417.15 | G23: 417.15 | H23: 417.15
A24: 201 | B24: 03 | C24: 99 | D24: 2010399 | E24: 其他政府办公厅（室）及相关机构事务支出 | F24: 20.04 | G24: 20.04 | H24: 20.04
A25: 208 | B25: 05 | C25: 05 | D25: 2080505 | E25: 机关事业单位基本养老保险缴费支出 | F25: 54.06 | G25: 54.06 | H25: 54.06
A26: 208 | B26: 99 | C26: 99 | D26: 2089999 | E26: 其他社会保障和就业支出 | F26: 3.38 | G26: 3.38 | H26: 3.38
A27: 210 | B27: 11 | C27: 02 | D27: 2101102 | E27: 事业单位医疗 | F27: 32.10 | G27: 32.10 | H27: 32.10
A28: 214 | B28: 01 | C28: 01 | D28: 2140101 | E28: 行政运行 | F28: 40.54 | G28: 40.54 | H28: 40.54
A29: 214 | B29: 01 | C29: 12 | D29: 2140112 | E29: 公路运输管理 | F29: 410.80 | G29: 64.38 | I29: 64.38 | K29: 346.42
A30: 221 | B30: 02 | C30: 01 | D30: 2210201 | E30: 住房公积金 | F30: 146.00 | H30: 12.00 | K30: 134.00
D31: 414003 | E31: 岳阳县交通工程质量和安全监督管理站 | F31: 100.53 | G31: 63.80 | H31: 56.60 | I31: 7.20 | J31: 0.00 | K31: 36.73
A32: 208 | B32: 05 | C32: 05 | D32: 2080505 | E32: 机关事业单位基本养老保险缴费支出 | F32: 87.15 | G32: 50.42 | H32: 43.22 | I32: 7.20 | K32: 36.73
A33: 208 | B33: 99 | C33: 99 | D33: 2089999 | E33: 其他社会保障和就业支出 | F33: 5.56 | G33: 5.56 | H33: 5.56
A34: 210 | B34: 11 | C34: 02 | D34: 2101102 | E34: 事业单位医疗 | F34: 0.35 | G34: 0.35 | H34: 0.35
A35: 214 | B35: 01 | C35: 01 | D35: 2140101 | E35: 行政运行 | F35: 3.30 | G35: 3.30 | H35: 3.30
A36: 221 | B36: 02 | C36: 01 | D36: 2210201 | E36: 住房公积金 | F36: 4.17 | G36: 4.17 | H36: 4.17
D37: 414004 | E37: 岳阳县港口航务管理所 | F37: =G37+K37 -> 954.11 | G37: =H37+I37+J37 -> 440.20 | H37: 338.71 | I37: =SUM(I38:I43) -> 101.49 | J37: 0.00 | K37: 513.91
A38: 208 | B38: 05 | C38: 05 | D38: 2080505 | E38: 机关事业单位基本养老保险缴费支出 | F38: 824.28 | G38: 310.37 | H38: 257.49 | I38: =40.44+12.443608 -> 52.88 | K38: 513.91
A39: 208 | B39: 99 | C39: 99 | D39: 2089999 | E39: 其他社会保障和就业支出 | F39: 33.75 | G39: 33.75 | H39: 33.75
A40: 210 | B40: 11 | C40: 02 | D40: 2101102 | E40: 事业单位医疗 | F40: 2.11 | G40: 2.11 | H40: 2.11
A41: 214 | B41: 01 | C41: 01 | D41: 2140101 | E41: 行政运行 | F41: 20.04 | G41: 20.04 | H41: 20.04
A42: 221 | B42: 02 | C42: 01 | D42: 2210201 | E42: 住房公积金 | F42: 25.32 | G42: 25.32 | H42: 25.32
A43: 214 | B43: 01 | C43: 23 | D43: 2140123 | E43: 航道维护 | F43: 48.61 | G43: 48.61 | I43: 48.61
D44: 414005 | E44: 岳阳县城市公共交通执法大队 | F44: =SUM(F45:F51) -> 248.66 | G44: 174.13 | H44: 155.41 | I44: 18.72 | J44: 0.00 | K44: 74.53
A45: 208 | B45: 05 | C45: 05 | D45: 2080505 | E45: 机关事业单位基本养老保险缴费支出 | F45: =G45+K45 -> 201.57 | G45: =H45+I45+J45 -> 127.04 | H45: 108.32 | I45: 18.72 | K45: 74.53
A46: 208 | B46: 99 | C46: 99 | D46: 2089999 | E46: 其他社会保障和就业支出 | F46: 14.03 | G46: 14.03 | H46: 14.03 | K46: =L46+M46 -> 0.00
A47: 210 | B47: 11 | C47: 02 | D47: 2101102 | E47: 事业单位医疗 | F47: 0.88 | G47: 0.88 | H47: 0.88 | K47: 0.00
A48: 214 | B48: 01 | C48: 01 | D48: 2140101 | E48: 行政运行 | F48: 8.33 | G48: 8.33 | H48: 8.33 | K48: 0.00
A49: 221 | B49: 02 | C49: 01 | D49: 2210201 | E49: 住房公积金 | F49: 10.53 | G49: 10.53 | H49: 10.53 | K49: 0.00
A50: 214 | B50: 01 | C50: 12 | D50: 2140112 | E50: 公路运输管理 | F50: 5.67 | G50: 5.67 | H50: 5.67 | K50: 0.00
A51: 201 | B51: 03 | C51: 99 | D51: 2010399 | E51: 其他政府办公厅（室）及相关机构事务支出 | F51: 7.65 | G51: 7.65 | H51: 7.65 | K51: 0.00
D52: 414006 | E52: 岳阳县交通运输综合行政执法大队 | F52: 311.84 | G52: 186.08 | H52: 169.22 | I52: 16.86 | J52: 0.00 | K52: 125.76
A53: 208 | B53: 05 | C53: 05 | D53: 2080505 | E53: 机关事业单位基本养老保险缴费支出 | F53: 246.86 | G53: 121.10 | H53: 104.24 | I53: 16.86 | K53: 125.76
A54: 208 | B54: 99 | C54: 99 | D54: 2089999 | E54: 其他社会保障和就业支出 | F54: 13.63 | G54: 13.63 | H54: 13.63
A55: 210 | B55: 11 | C55: 02 | D55: 2101102 | E55: 事业单位医疗 | F55: 0.85 | G55: 0.85 | H55: 0.85
A56: 214 | B56: 01 | C56: 12 | D56: 2140112 | E56: 公路运输管理 | F56: 8.09 | G56: 8.09 | H56: 8.09
A57: 221 | B57: 02 | C57: 01 | D57: 2210201 | E57: 住房公积金 | F57: 10.22 | G57: 10.22 | H57: 10.22
A58: 201 | B58: 03 | C58: 99 | D58: 2010399 | E58: 其他政府办公厅（室）及相关机构事务支出 | F58: 32.17 | G58: 32.17 | H58: 32.17
D59: 414007 | E59: 岳阳县超限治理站 | F59: =SUM(F60:F65) -> 349.06 | G59: 164.06 | H59: 126.68 | I59: 37.38 | J59: 0.00 | K59: 185.00
A60: 208 | B60: 05 | C60: 05 | D60: 2080505 | E60: 机关事业单位基本养老保险缴费支出 | F60: =G60+K60 -> 314.01 | G60: =H60+I60+J60 -> 129.01 | H60: 91.63 | I60: =16.38+21 -> 37.38 | K60: 185.00
A61: 208 | B61: 99 | C61: 99 | D61: 2089999 | E61: 其他社会保障和就业支出 | F61: 11.86 | G61: 11.86 | H61: 11.86
A62: 210 | B62: 11 | C62: 01 | D62: 2101101 | E62: 行政单位医疗 | F62: 0.74 | G62: 0.74 | H62: 0.74
A63: 214 | B63: 01 | C63: 12 | D63: 2140112 | E63: 公路运输管理 | F63: 7.04 | G63: 7.04 | H63: 7.04
A64: 221 | B64: 02 | C64: 01 | D64: 2210201 | E64: 住房公积金 | F64: 8.90 | G64: 8.90 | H64: 8.90
A65: 201 | B65: 03 | C65: 99 | D65: 2010399 | E65: 其他政府办公厅（室）及相关机构事务支出 | F65: 6.50 | G65: 6.50 | H65: 6.50
D66: 414008 | E66: 岳阳县农村公路养护中心 | F66: 1,734.42 | G66: 244.51 | H66: 219.43 | I66: 25.08 | J66: 0.00 | K66: 1,489.91
A67: 208 | B67: 05 | C67: 05 | D67: 2080505 | E67: 机关事业单位基本养老保险缴费支出 | F67: 296.06 | G67: 185.62 | H67: 160.54 | I67: 25.08 | K67: 110.44
A68: 208 | B68: 99 | C68: 99 | D68: 2089999 | E68: 其他社会保障和就业支出 | F68: 21.06 | G68: 21.06 | H68: 21.06
A69: 210 | B69: 11 | C69: 02 | D69: 2101102 | E69: 事业单位医疗 | F69: 1.32 | G69: 1.32 | H69: 1.32
A70: 214 | B70: 01 | C70: 01 | D70: 2140101 | E70: 行政运行 | F70: 12.50 | G70: 12.50 | H70: 12.50
A71: 221 | B71: 02 | C71: 01 | D71: 2210201 | E71: 住房公积金 | F71: 15.79 | G71: 15.79 | H71: 15.79
A72: 201 | B72: 03 | C72: 99 | D72: 2010399 | E72: 其他政府办公厅（室）及相关机构事务支出 | F72: 8.23 | G72: 8.23 | H72: 8.23
A73: 212 | B73: 08 | C73: 04 | D73: 414008 | E73: 农村基础设施建设支出 | F73: 500.00 | K73: 500.00
A74: 212 | B74: 08 | C74: 99 | D74: 414008 | E74: 其他国有土地使用权出让收入安排的支出 | F74: 131.10 | K74: 131.10
A75: 214 | B75: 06 | C75: 99 | D75: 2140699 | E75: 车辆购置税其他支出 | F75: 500.61 | K75: 500.61
A76: 214 | B76: 01 | C76: 06 | D76: 2140106 | E76: 公路养护 | F76: 247.76 | K76: 247.76

Sheet 8一般公共预算基本支出表
E1: 部门公开表08
A2: 一般公共预算基本支出表
A3: 单位：414_岳阳县交通运输局 | E3: 单位：万元
A4: 部门预算支出经济分类科目 | C4: 本年一般公共预算基本支出
A5: 科目代码 | B5: 科目名称 | C5: 合计 | D5: 人员经费 | E5: 公用经费
A6: 301 | B6: 工资福利支出 | C6: 2163.22 | D6: 2163.22
A7: 30108 | B7: 机关事业单位基本养老保险缴费 | C7: 201.15 | D7: 201.15
A8: 30112 | B8: 其他社会保障缴费 | C8: 12.57 | D8: 12.57
A9: 30110 | B9: 职工基本医疗保险缴费 | C9: 106.86 | D9: 106.86
A10: 30111 | B10: 公务员医疗补助缴费 | C10: 12.57 | D10: 12.57
A11: 30107 | B11: 绩效工资 | C11: 383.75 | D11: 383.75
A12: 30103 | B12: 奖金 | C12: 0.00 | D12: 0.00
A13: 30101 | B13: 基本工资 | C13: 842.40 | D13: 842.40
A14: 30102 | B14: 津贴补贴 | C14: 380.53 | D14: 380.53
A15: 30199 | B15: 其他工资福利支出 | C15: 72.53 | D15: 72.53
A16: 30113 | B16: 住房公积金 | C16: 150.86 | D16: 150.86
A17: 302 | B17: 商品和服务支出 | C17: 333.58 | E17: 333.58
A18: 30216 | B18: 培训费 | C18: 13.16 | E18: 13.16
A19: 30217 | B19: 公务接待费 | C19: 17.92 | E19: 17.92
A20: 30207 | B20: 邮电费 | C20: 8.72 | E20: 8.72
A21: 30205 | B21: 水费 | C21: 3.72 | E21: 3.72
A22: 30213 | B22: 维修（护）费 | C22: 2.00 | E22: 2.00
A23: 30239 | B23: 其他交通费用 | C23: 136.54 | E23: 136.54
A24: 30201 | B24: 办公费 | C24: 26.70 | E24: 26.70
A25: 30211 | B25: 差旅费 | C25: 9.38 | E25: 9.38
A26: 30209 | B26: 物业管理费 | C26: 5.39 | E26: 5.39
A27: 30206 | B27: 电费 | C27: 19.38 | E27: 19.38
A28: 30202 | B28: 印刷费 | C28: 6.91 | E28: 6.91
A29: 30299 | B29: 其他商品和服务支出 | C29: 73.14 | E29: 73.14
A30: 30215 | B30: 会议费 | C30: 10.61 | E30: 10.61
A31: 30213 | B31: 维修（护）费
A32: 30226 | B32: 劳务费
A33: 30227 | B33: 委托业务费
A34: 合计 | C34: 2496.80 | D34: 2163.22 | E34: 333.58
A35: 注：如本表格为空，则表示本年度未安排此项目。

Sheet 9工资福利(政府预算)
M1: 部门公开表09
A2: 一般公共预算基本支出表--人员经费(工资福利支出)(按政府预算经济分类)
A3: 单位：414岳阳县交通运输局 | M3: 金额单位：万元
A4: 功能科目 | D4: 单位代码 | E4: 单位名称（功能科目） | F4: 总 计 | G4: 机关工资福利支出 | L4: 对事业单位经常性补助
A5: 类 | B5: 款 | C5: 项 | G5: 合计 | H5: 工资奖金津补贴 | I5: 社会保障缴费 | J5: 住房公积金 | K5: 其他工资福利支出 | L5: 合计 | M5: 工资福利支出 | N5: 其他对事业单位补助
E6: 合计 | F6: =F7 -> 2,163.23 | G6: =G7 -> 517.92 | H6: 399.94 | I6: 78.15 | J6: 35.39 | K6: 4.44 | L6: 1,645.31 | M6: 1,645.31 | N6: 0.00
D7: 414 | E7: 岳阳县交通运输局 | F7: =F8+F15+F23+F29+F35+F43+F50+F57 -> 2,163.23 | G7: =G8+G15+G23+G29+G35+G43+G50+G57 -> 517.92 | H7: 399.94 | I7: 78.15 | J7: 35.39 | K7: 4.44 | L7: 1,645.31 | M7: 1,645.31 | N7: 0.00
D8: 414001 | E8: 岳阳县交通运输局 | F8: =SUM(F9:F14) -> 517.92 | G8: 517.92 | H8: 399.94 | I8: 78.15 | J8: 35.39 | K8: 4.44
A9: 208 | B9: 05 | C9: 05 | D9: 414001 | E9: 机关事业单位基本养老保险缴费支出 | F9: 47.18 | G9: 47.18 | I9: 47.18
A10: 208 | B10: 99 | C10: 99 | D10: 414001 | E10: 其他社会保障和就业支出 | F10: 2.95 | G10: 2.95 | I10: 2.95
A11: 210 | B11: 11 | C11: 01 | D11: 414001 | E11: 行政单位医疗 | F11: 28.02 | G11: 28.02 | I11: 28.02
A12: 214 | B12: 01 | C12: 01 | D12: 414001 | E12: 行政运行 | F12: 399.94 | G12: 399.94 | H12: 399.94
A13: 221 | B13: 02 | C13: 01 | D13: 414001 | E13: 住房公积金 | F13: 35.39 | G13: 35.39 | J13: 35.39
A14: 201 | B14: 3 | C14: 99 | D14: 414001 | E14: 其他政府办公厅（室）及相关机构事务支出 | F14: 4.44 | G14: 4.44 | K14: 4.44
D15: 414002 | E15: 岳阳县道路运输管理所 | F15: 579.26 | L15: 579.26 | M15: 579.26
A16: 208 | B16: 05 | C16: 05 | D16: 414002 | E16: 机关事业单位基本养老保险缴费支出 | F16: 54.06 | L16: 54.06 | M16: 54.06
A17: 208 | B17: 99 | C17: 99 | D17: 414002 | E17: 其他社会保障和就业支出 | F17: 3.38 | L17: 3.38 | M17: 3.38
A18: 210 | B18: 11 | C18: 02 | D18: 414002 | E18: 事业单位医疗 | F18: 32.10 | L18: 32.10 | M18: 32.10
A19: 214 | B19: 01 | C19: 01 | D19: 414002 | E19: 行政运行 | F19: 417.15 | L19: 417.15 | M19: 417.15
A20: 221 | B20: 02 | C20: 01 | D20: 414002 | E20: 住房公积金 | F20: 40.54 | L20: 40.54 | M20: 40.54
A21: 201 | B21: 03 | C21: 99 | D21: 414002 | E21: 其他政府办公厅（室）及相关机构事务支出 | F21: 20.04 | L21: 20.04 | M21: 20.04
A22: 214 | B22: 01 | C22: 12 | D22: 414002 | E22: 公路运输管理 | F22: 12.00 | L22: 12.00 | M22: 12.00
D23: 414003 | E23: 岳阳县交通工程质量和安全监督管理站 | F23: 56.60 | L23: 56.60 | M23: 56.60
A24: 208 | B24: 05 | C24: 05 | D24: 414003 | E24: 机关事业单位基本养老保险缴费支出 | F24: 5.56 | L24: 5.56 | M24: 5.56
A25: 208 | B25: 99 | C25: 99 | D25: 414003 | E25: 其他社会保障和就业支出 | F25: 0.35 | L25: 0.35 | M25: 0.35
A26: 210 | B26: 11 | C26: 02 | D26: 414003 | E26: 事业单位医疗 | F26: 3.30 | L26: 3.30 | M26: 3.30
A27: 214 | B27: 01 | C27: 01 | D27: 414003 | E27: 行政运行 | F27: 43.22 | L27: 43.22 | M27: 43.22
A28: 221 | B28: 02 | C28: 01 | D28: 414003 | E28: 住房公积金 | F28: 4.17 | L28: 4.17 | M28: 4.17
D29: 414004 | E29: 岳阳县港口航务管理所 | F29: 338.71 | L29: =M29+N29 -> 338.71 | M29: 338.71
A30: 208 | B30: 05 | C30: 05 | D30: 414004 | E30: 机关事业单位基本养老保险缴费支出 | F30: 33.75 | L30: 33.75 | M30: 33.75
A31: 208 | B31: 99 | C31: 99 | D31: 414004 | E31: 其他社会保障和就业支出 | F31: 2.11 | L31: 2.11 | M31: 2.11
A32: 210 | B32: 11 | C32: 02 | D32: 414004 | E32: 事业单位医疗 | F32: 20.04 | L32: 20.04 | M32: 20.04
A33: 214 | B33: 01 | C33: 01 | D33: 414004 | E33: 行政运行 | F33: 257.49 | L33: 257.49 | M33: 257.49
A34: 221 | B34: 02 | C34: 01 | D34: 414004 | E34: 住房公积金 | F34: 25.32 | L34: 25.32 | M34: 25.32
D35: 414005 | E35: 岳阳县城市公共交通执法大队 | F35: =SUM(F36:F42) -> 155.41 | L35: =SUM(L36:L42) -> 155.41 | M35: =SUM(M36:M42) -> 155.41
A36: 208 | B36: 05 | C36: 05 | D36: 414005 | E36: 机关事业单位基本养老保险缴费支出 | F36: =G36+L36 -> 14.03 | L36: =M36+N36 -> 14.03 | M36: 14.03
A37: 208 | B37: 99 | C37: 99 | D37: 414005 | E37: 其他社会保障和就业支出 | F37: 0.88 | L37: 0.88 | M37: 0.88
A38: 210 | B38: 11 | C38: 02 | D38: 414005 | E38: 事业单位医疗 | F38: 8.33 | L38: 8.33 | M38: 8.33
A39: 214 | B39: 01 | C39: 01 | D39: 414005 | E39: 行政运行 | F39: 108.32 | L39: 108.32 | M39: 108.32
A40: 221 | B40: 02 | C40: 01 | D40: 414005 | E40: 住房公积金 | F40: 10.53 | L40: 10.53 | M40: 10.53
A41: 214 | B41: 01 | C41: 12 | D41: 414005 | E41: 公路运输管理 | F41: 5.67 | L41: 5.67 | M41: 5.67
A42: 201 | B42: 03 | C42: 99 | D42: 414005 | E42: 其他政府办公厅（室）及相关机构事务支出 | F42: 7.65 | L42: 7.65 | M42: 7.65
D43: 414006 | E43: 岳阳县交通运输综合行政执法大队 | F43: 169.22 | L43: =F43 -> 169.22 | M43: 169.22
A44: 208 | B44: 05 | C44: 05 | D44: 414006 | E44: 机关事业单位基本养老保险缴费支出 | F44: 13.63 | L44: 13.63 | M44: 13.63
A45: 208 | B45: 99 | C45: 99 | D45: 414006 | E45: 其他社会保障和就业支出 | F45: 0.85 | L45: 0.85 | M45: 0.85
A46: 210 | B46: 11 | C46: 02 | D46: 414006 | E46: 事业单位医疗 | F46: 8.09 | L46: 8.09 | M46: 8.09
A47: 214 | B47: 01 | C47: 12 | D47: 414006 | E47: 公路运输管理 | F47: 104.24 | L47: 104.24 | M47: 104.24
A48: 221 | B48: 02 | C48: 01 | D48: 414006 | E48: 住房公积金 | F48: 10.22 | L48: 10.22 | M48: 10.22
A49: 201 | B49: 03 | C49: 99 | D49: 2010399 | E49: 其他政府办公厅（室）及相关机构事务支出 | F49: 32.17 | L49: 32.17 | M49: 32.17
D50: 414007 | E50: 岳阳县超限治理站 | F50: =SUM(F51:F56) -> 126.68 | L50: =SUM(L51:L56) -> 126.68 | M50: =SUM(M51:M56) -> 126.68
A51: 208 | B51: 05 | C51: 05 | D51: 414007 | E51: 机关事业单位基本养老保险缴费支出 | F51: 11.86 | L51: 11.86 | M51: 11.86
A52: 208 | B52: 99 | C52: 99 | D52: 414007 | E52: 其他社会保障和就业支出 | F52: 0.74 | L52: 0.74 | M52: 0.74
A53: 210 | B53: 11 | C53: 01 | D53: 414007 | E53: 行政单位医疗 | F53: 7.04 | L53: 7.04 | M53: 7.04
A54: 214 | B54: 01 | C54: 12 | D54: 414007 | E54: 公路运输管理 | F54: 91.63 | L54: 91.63 | M54: 91.63
A55: 221 | B55: 02 | C55: 01 | D55: 414007 | E55: 住房公积金 | F55: 8.90 | L55: 8.90 | M55: 8.90
A56: 201 | B56: 03 | C56: 99 | D56: 414007 | E56: 其他政府办公厅（室）及相关机构事务支出 | F56: =L56 -> 6.50 | L56: =M56 -> 6.50 | M56: 6.50
D57: 414008 | E57: 岳阳县农村公路养护中心 | F57: 219.43 | L57: 219.43 | M57: 219.43
A58: 208 | B58: 05 | C58: 05 | D58: 414008 | E58: 机关事业单位基本养老保险缴费支出 | F58: 21.06 | L58: 21.06 | M58: 21.06
A59: 208 | B59: 99 | C59: 99 | D59: 414008 | E59: 其他社会保障和就业支出 | F59: 1.32 | L59: 1.32 | M59: 1.32
A60: 210 | B60: 11 | C60: 02 | D60: 414008 | E60: 事业单位医疗 | F60: 12.50 | L60: 12.50 | M60: 12.50
A61: 214 | B61: 01 | C61: 01 | D61: 414008 | E61: 行政运行 | F61: 160.54 | L61: 160.54 | M61: 160.54
A62: 221 | B62: 02 | C62: 01 | D62: 414008 | E62: 住房公积金 | F62: 15.79 | L62: 15.79 | M62: 15.79
A63: 201 | B63: 03 | C63: 99 | D63: 414008 | E63: 其他政府办公厅（室）及相关机构事务支出 | F63: 8.23 | L63: 8.23 | M63: 8.23

Sheet 10工资福利
U1: 部门公开表10
A2: 一般公共预算基本支出表--人员经费(工资福利支出)(按部门预算经济分类)
A3: 单位：414岳阳县交通运输局 | U3: 金额单位：万元
A4: 功能科目 | D4: 单位代码 | E4: 单位名称（功能科目） | F4: 总 计 | G4: 工资津补贴 | L4: 社会保障缴费 | R4: 住房公积金 | S4: 其他工资福利支出
A5: 类 | B5: 款 | C5: 项 | G5: 合计 | H5: 基本工资 | I5: 津贴补贴 | J5: 奖金 | K5: 绩效工资 | L5: 合计 | M5: 机关事业单位基本养老保险缴费 | N5: 职业年金缴费 | O5: 职工基本医疗保险缴费 | P5: 公务员医疗补助缴费 | Q5: 其他社会保障缴费 | S5: 合计 | T5: 伙食补助费 | U5: 医疗费 | V5: 其他工资福利支出
E6: 合计 | F6: =F7 -> 2,163.22 | G6: =G7 -> 1,606.69 | H6: 842.40 | I6: 380.53 | J6: 0.00 | K6: 383.75 | L6: 333.15 | M6: 201.15 | N6: 0.00 | O6: 106.86 | P6: 12.57 | Q6: 12.57 | R6: 150.86 | S6: 72.53 | T6: 0.00 | U6: 0.00 | V6: 72.53
D7: 414 | E7: 岳阳县交通运输局 | F7: =F8+F15+F23+F29+F35+F43+F50+F57 -> 2,163.22 | G7: =G8+G15+G23+G29+G35+G43+G50+G57 -> 1,606.69 | H7: =H8+H15+H23+H29+H35+H43+H50+H57 -> 842.40 | I7: 380.53 | J7: 0.00 | K7: 383.75 | L7: 333.15 | M7: 201.15 | N7: 0.00 | O7: 106.86 | P7: 12.57 | Q7: 12.57 | R7: 150.86 | S7: 72.53 | T7: 0.00 | U7: 0.00 | V7: 72.53
D8: 414001 | E8: 岳阳县交通运输局 | F8: 517.92 | G8: 399.94 | H8: 199.63 | I8: 143.20 | K8: 57.11 | L8: 78.15 | M8: 47.18 | O8: 25.07 | P8: 2.95 | Q8: 2.95 | R8: 35.39 | S8: =S14 -> 4.44 | V8: =V14 -> 4.44
A9: 208 | B9: 05 | C9: 05 | D9: 414001 | E9: 机关事业单位基本养老保险缴费支出 | F9: 47.18 | L9: 47.18 | M9: 47.18
A10: 208 | B10: 99 | C10: 99 | D10: 414001 | E10: 其他社会保障和就业支出 | F10: 2.95 | L10: 2.95 | Q10: 2.95
A11: 210 | B11: 11 | C11: 01 | D11: 414001 | E11: 行政单位医疗 | F11: 28.02 | L11: 28.02 | O11: 25.07 | P11: 2.95
A12: 214 | B12: 01 | C12: 01 | D12: 414001 | E12: 行政运行 | F12: 399.94 | G12: 399.94 | H12: 199.63 | I12: 143.20 | K12: 57.11
A13: 221 | B13: 02 | C13: 01 | D13: 414001 | E13: 住房公积金 | F13: 35.39 | R13: 35.39
A14: 201 | B14: 3 | C14: 99 | D14: 414001 | E14: 其他政府办公厅（室）及相关机构事务支出 | F14: 4.44 | S14: 4.44 | V14: 4.44
D15: 414002 | E15: 岳阳县道路运输管理所 | F15: 579.26 | G15: 429.15 | H15: 225.87 | I15: 91.30 | K15: 111.98 | L15: 89.53 | M15: 54.06 | O15: 28.72 | P15: 3.38 | Q15: 3.38 | R15: 40.54 | S15: 20.04 | V15: 20.04
A16: 208 | B16: 05 | C16: 05 | D16: 414002 | E16: 机关事业单位基本养老保险缴费支出 | F16: 54.06 | L16: 54.06 | M16: 54.06
A17: 208 | B17: 99 | C17: 99 | D17: 414002 | E17: 其他社会保障和就业支出 | F17: 3.38 | L17: 3.38 | Q17: 3.38
A18: 210 | B18: 11 | C18: 02 | D18: 414002 | E18: 事业单位医疗 | F18: 32.10 | L18: 32.10 | O18: 28.72 | P18: 3.38
A19: 214 | B19: 01 | C19: 01 | D19: 414002 | E19: 行政运行 | F19: 417.15 | G19: 417.15 | H19: 225.87 | I19: 79.30 | K19: 111.98
A20: 221 | B20: 02 | C20: 01 | D20: 414002 | E20: 住房公积金 | F20: 40.54 | R20: 40.54
A21: 201 | B21: 03 | C21: 99 | D21: 414002 | E21: 其他政府办公厅（室）及相关机构事务支出 | F21: 20.04 | V21: 20.04
A22: 214 | B22: 01 | C22: 12 | D22: 414002 | E22: 公路运输管理 | F22: 12.00 | I22: 12.00
D23: 414003 | E23: 岳阳县交通工程质量和安全监督管理站 | F23: 56.60 | G23: 43.21 | H23: 22.69 | I23: 8.45 | K23: 12.07 | L23: 9.21 | M23: 5.56 | O23: 2.95 | P23: 0.35 | Q23: 0.35 | R23: 4.17
A24: 208 | B24: 05 | C24: 05 | D24: 414003 | E24: 机关事业单位基本养老保险缴费支出 | F24: 5.56 | G24: 43.21 | L24: 5.56 | M24: 5.56
A25: 208 | B25: 99 | C25: 99 | D25: 414003 | E25: 其他社会保障和就业支出 | F25: 0.35 | G25: 43.21 | L25: 0.35 | Q25: 0.35
A26: 210 | B26: 11 | C26: 02 | D26: 414003 | E26: 事业单位医疗 | F26: 3.30 | G26: 43.21 | L26: 3.30 | O26: 2.95 | P26: 0.35
A27: 214 | B27: 01 | C27: 01 | D27: 414003 | E27: 行政运行 | F27: 43.21 | G27: 43.21 | H27: 22.69 | I27: 8.45 | K27: 12.07
A28: 221 | B28: 02 | C28: 01 | D28: 414003 | E28: 住房公积金 | F28: 4.17 | R28: 4.17
D29: 414004 | E29: 岳阳县港口航务管理所 | F29: 338.71 | G29: 257.49 | H29: 141.04 | I29: 46.52 | K29: 69.92 | L29: 55.91 | M29: 33.75 | O29: 17.93 | P29: 2.11 | Q29: 2.11 | R29: 25.32
A30: 208 | B30: 05 | C30: 05 | D30: 414004 | E30: 机关事业单位基本养老保险缴费支出 | F30: 33.75 | L30: 33.75 | M30: 33.75
A31: 208 | B31: 99 | C31: 99 | D31: 414004 | E31: 其他社会保障和就业支出 | F31: 2.11 | L31: 2.11 | Q31: 2.11
A32: 210 | B32: 11 | C32: 02 | D32: 414004 | E32: 事业单位医疗 | F32: 20.04 | L32: 20.04 | O32: 17.93 | P32: 2.11
A33: 214 | B33: 01 | C33: 01 | D33: 414004 | E33: 行政运行 | F33: 257.49 | G33: 257.49 | H33: 141.04 | I33: 46.52 | K33: 69.92
A34: 221 | B34: 02 | C34: 01 | D34: 414004 | E34: 住房公积金 | F34: 25.32 | R34: 25.32
D35: 414005 | E35: 岳阳县城市公共交通执法大队 | F35: =SUM(F36:F42) -> 155.41 | G35: 113.99 | H35: 56.17 | I35: 25.61 | J35: 0.00 | K35: 32.21 | L35: 23.24 | M35: 14.03 | N35: 0.00 | O35: 7.46 | P35: 0.88 | Q35: 0.88 | R35: 10.53 | S35: 7.65 | T35: 0.00 | U35: 0.00 | V35: 7.65
A36: 208 | B36: 05 | C36: 05 | D36: 414005 | E36: 机关事业单位基本养老保险缴费支出 | F36: 14.03 | L36: 14.03 | M36: 14.03
A37: 208 | B37: 99 | C37: 99 | D37: 414005 | E37: 其他社会保障和就业支出 | F37: 0.88 | L37: 0.88 | Q37: 0.88
A38: 210 | B38: 11 | C38: 02 | D38: 414005 | E38: 事业单位医疗 | F38: 8.33 | L38: 8.33 | O38: 7.46 | P38: 0.88
A39: 214 | B39: 01 | C39: 01 | D39: 414005 | E39: 行政运行 | F39: 108.32 | G39: 108.32 | H39: 56.17 | I39: 20.61 | K39: 31.54
A40: 221 | B40: 02 | C40: 01 | D40: 414005 | E40: 住房公积金 | F40: 10.53 | R40: 10.53
A41: 214 | B41: 01 | C41: 12 | D41: 414005 | E41: 公路运输管理 | F41: =G41+L41+R41+S41 -> 5.67 | G41: =H41+I41+J41+K41 -> 5.67 | H41: 0.00 | I41: 5.00 | K41: 0.67
A42: 201 | B42: 03 | C42: 99 | D42: 414005 | E42: 其他政府办公厅（室）及相关机构事务支出 | F42: =G42+L42+R42+S42 -> 7.65 | S42: =V42 -> 7.65 | V42: 7.65
D43: 414006 | E43: 岳阳县交通运输综合行政执法大队 | F43: 169.22 | G43: 104.24 | H43: 56.28 | I43: 19.04 | K43: 28.93 | L43: 22.58 | M43: 13.63 | O43: 7.24 | P43: 0.85 | Q43: 0.85 | R43: 10.22 | S43: =S49 -> 32.17 | V43: =V49 -> 32.17
A44: 208 | B44: 05 | C44: 05 | D44: 414006 | E44: 机关事业单位基本养老保险缴费支出 | F44: 13.63 | L44: 13.63 | M44: 13.63
A45: 208 | B45: 99 | C45: 99 | D45: 414006 | E45: 其他社会保障和就业支出 | F45: 0.85 | L45: 0.85 | Q45: 0.85
A46: 210 | B46: 11 | C46: 02 | D46: 414006 | E46: 事业单位医疗 | F46: 8.09 | L46: 8.09 | O46: 7.24 | P46: 0.85
A47: 214 | B47: 01 | C47: 12 | D47: 414006 | E47: 公路运输管理 | F47: 104.24 | G47: 104.24 | H47: 56.28 | I47: 19.04 | K47: 28.93
A48: 221 | B48: 02 | C48: 01 | D48: 414006 | E48: 住房公积金 | F48: 10.22 | R48: 10.22
A49: 201 | B49: 03 | C49: 99 | D49: 2010399 | E49: 其他政府办公厅（室）及相关机构事务支出 | F49: 32.17 | S49: 32.17 | V49: 32.17
D50: 414007 | E50: 岳阳县超限治理站 | F50: =SUM(F51:F56) -> 126.68 | G50: 98.13 | H50: 53.29 | I50: 17.47 | K50: 27.36 | L50: 19.65 | M50: 11.86 | O50: 6.30 | P50: 0.74 | Q50: 0.74 | R50: 8.90
A51: 208 | B51: 05 | C51: 05 | D51: 414007 | E51: 机关事业单位基本养老保险缴费支出 | F51: 11.86 | L51: 11.86 | M51: 11.86
A52: 208 | B52: 99 | C52: 99 | D52: 414007 | E52: 其他社会保障和就业支出 | F52: 0.74 | L52: 0.74 | Q52: 0.74
A53: 210 | B53: 11 | C53: 01 | D53: 414007 | E53: 行政单位医疗 | F53: 7.04 | L53: 7.04 | O53: 6.30 | P53: 0.74
A54: 214 | B54: 01 | C54: 12 | D54: 414007 | E54: 公路运输管理 | F54: 91.63 | G54: 91.63 | H54: 46.79 | I54: 17.47 | K54: 27.36
A55: 221 | B55: 02 | C55: 01 | D55: 414007 | E55: 住房公积金 | F55: 8.90 | R55: 8.90
A56: 201 | B56: 03 | C56: 99 | D56: 414007 | E56: 其他政府办公厅（室）及相关机构事务支出 | F56: 6.50 | G56: 6.50 | H56: 6.50
D57: 414008 | E57: 岳阳县农村公路养护中心 | F57: 219.43 | G57: 160.54 | H57: 87.43 | I57: 28.94 | K57: 44.17 | L57: 34.87 | M57: 21.06 | O57: 11.19 | P57: 1.32 | Q57: 1.32 | R57: 15.79 | S57: 8.23 | V57: 8.23
A58: 208 | B58: 05 | C58: 05 | D58: 414008 | E58: 机关事业单位基本养老保险缴费支出 | F58: 21.06 | L58: 21.06 | M58: 21.06
A59: 208 | B59: 99 | C59: 99 | D59: 414008 | E59: 其他社会保障和就业支出 | F59: 1.32 | L59: 1.32 | Q59: 1.32
A60: 210 | B60: 11 | C60: 02 | D60: 414008 | E60: 事业单位医疗 | F60: 12.50 | L60: 12.50 | O60: 11.19 | P60: 1.32
A61: 214 | B61: 01 | C61: 01 | D61: 414008 | E61: 行政运行 | F61: 160.54 | G61: 160.54 | H61: 87.43 | I61: 28.94 | K61: 44.17
A62: 221 | B62: 02 | C62: 01 | D62: 414008 | E62: 住房公积金 | F62: 15.79 | R62: 15.79
A63: 201 | B63: 03 | C63: 99 | D63: 414008 | E63: 其他政府办公厅（室）及相关机构事务支出 | F63: 8.23 | G63: 8.23 | S63: 8.23 | V63: 8.23

Sheet 11个人家庭(政府预算)
K1: 部门公开表11
A2: 一般公共预算基本支出表--人员经费(对个人和家庭的补助)(按政府预算经济分类)
A3: 单位：414岳阳县交通运输局 | J3: 金额单位：万元
A4: 功能科目 | D4: 单位代码 | E4: 单位名称（功能科目） | F4: 总计 | G4: 社会福利和救济 | H4: 助学金 | I4: 个人农业生产补贴 | J4: 离退休费 | K4: 其他对个人和家庭的补助
A5: 类 | B5: 款 | C5: 项
E6: 合计 | F6: 0.00

Sheet 12个人家庭
Q1: 部门公开表12
A2: 一般公共预算基本支出表--人员经费(对个人和家庭的补助)（按部门预算经济分类）
A3: 单位：414岳阳县交通运输局 | Q3: 金额单位：万元
A4: 功能科目 | D4: 单位代码 | E4: 单位名称（功能科目） | F4: 总计 | G4: 离休费 | H4: 退休费 | I4: 退职（役）费 | J4: 抚恤金 | K4: 生活补助 | L4: 救济费 | M4: 医疗费补助 | N4: 助学金 | O4: 奖励金 | P4: 代缴社会保险费 | Q4: 个人农业生产补贴 | R4: 其他对个人和家庭的补助
A5: 类 | B5: 款 | C5: 项
E6: 合计 | F6: 0.00

Sheet 13商品服务(政府预算)
S1: 部门公开表13
A2: 一般公共预算基本支出表--公用经费(商品和服务支出)（按政府预算经济分类）
A3: 单位：414岳阳县交通运输局 | S3: 金额单位：万元
A4: 功能科目 | D4: 单位代码 | E4: 单位名称（功能科目） | F4: 总计 | G4: 机关商品和服务支出 | R4: 对事业单位经常性补助
A5: 类 | B5: 款 | C5: 项 | G5: 合计 | H5: 办公经费 | I5: 会议费 | J5: 培训费 | K5: 专用材料购置费 | L5: 委托业务费 | M5: 公务接待费 | N5: 因公出国（境）费用 | O5: 公务用车运行维护费 | P5: 维修(护)费 | Q5: 其他商品和服务支出 | R5: 合计 | S5: 商品和服务支出 | T5: 其他对事业单位补助
E6: 合计 | F6: =F7 -> 333.58 | G6: =G7 -> 62.47 | H6: 51.95 | I6: 0.00 | J6: 1.38 | K6: 0.00 | L6: 0.00 | M6: 1.94 | N6: 0.00 | O6: 0.00 | P6: 0.77 | Q6: 1.55 | R6: 271.11 | S6: 271.11 | T6: 0.00
D7: 414 | E7: 岳阳县交通运输局 | F7: =F8+F10+F12+F14+F17+F19+F21+F23 -> 333.58 | G7: =G8+G10+G12+G14+G17+G19+G21+G23 -> 62.47 | H7: 51.95 | I7: 0.00 | J7: 1.38 | K7: 0.00 | L7: 0.00 | M7: 1.94 | N7: 0.00 | O7: 0.00 | P7: 0.77 | Q7: 1.55 | R7: 271.11 | S7: 271.11 | T7: 0.00
D8: 414001 | E8: 岳阳县交通运输局 | F8: 62.47 | G8: 62.47 | H8: 51.95 | J8: 1.38 | M8: 1.94 | P8: 0.77 | Q8: 1.55
A9: 214 | B9: 01 | C9: 01 | D9: 414001 | E9: 行政运行 | F9: 62.47 | G9: 62.47 | H9: 51.95 | I9: 2.85 | J9: 1.38 | M9: 3.69 | P9: 0.77 | Q9: 1.83
D10: 414002 | E10: 岳阳县道路运输管理所 | F10: 64.38 | R10: 64.38 | S10: 64.38
A11: 201 | B11: 04 | C11: 01 | D11: 414002 | E11: 行政运行 | F11: 64.38 | R11: 64.38 | S11: 64.38
D12: 414003 | E12: 岳阳县交通工程质量和安全监督管理站 | F12: 7.20 | R12: 7.20 | S12: 7.20
A13: 214 | B13: 01 | C13: 01 | D13: 414003 | E13: 行政运行 | F13: 7.20 | R13: 7.20 | S13: 7.20
D14: 414004 | E14: 岳阳县港口航务管理所 | F14: =G14+R14 -> 101.49 | R14: =S14+T14 -> 101.49 | S14: =S15+S16 -> 101.49
A15: 214 | B15: 01 | C15: 01 | D15: 414004 | E15: 行政运行 | F15: 52.88 | R15: 52.88 | S15: =40.44+12.443608 -> 52.88
A16: 214 | B16: 01 | C16: 23 | D16: 414004 | E16: 航道维护 | F16: 48.61 | R16: 48.61 | S16: 48.61
D17: 414005 | E17: 岳阳县城市公共交通执法大队 | F17: 18.72 | R17: 18.72 | S17: 18.72
A18: 214 | B18: 01 | C18: 01 | D18: 414005 | E18: 行政运行 | F18: 18.72 | R18: 18.72 | S18: 18.72
D19: 414006 | E19: 岳阳县交通运输综合行政执法大队 | F19: 16.86 | R19: 16.86 | S19: 16.86
A20: 214 | B20: 01 | C20: 12 | D20: 414006 | E20: 公路运输管理 | F20: 16.86 | R20: 16.86 | S20: 16.86
D21: 414007 | E21: 岳阳县超限治理站 | F21: =F22 -> 37.38 | R21: =R22 -> 37.38 | S21: =S22 -> 37.38
A22: 214 | B22: 01 | C22: 12 | D22: 414007 | E22: 公路运输管理 | F22: =R22 -> 37.38 | R22: =S22 -> 37.38 | S22: =16.38+21 -> 37.38
D23: 414008 | E23: 岳阳县农村公路养护中心 | F23: 25.08 | R23: 25.08 | S23: 25.08
A24: 214 | B24: 01 | C24: 01 | D24: 414008 | E24: 行政运行 | F24: 25.08 | R24: 25.08 | S24: 25.08

Sheet 14商品服务
AF1: 部门公开表14
A2: 一般公共预算基本支出表--公用经费(商品和服务支出)(按部门预算经济分类)
A3: 单位：414岳阳县交通运输局 | AF3: 金额单位：万元
A4: 功能科目 | D4: 单位代码 | E4: 单位名称（功能科目） | F4: 总 计 | G4: 办公费 | H4: 印刷费 | I4: 咨询费 | J4: 手续费 | K4: 水费 | L4: 电费 | M4: 邮电费 | N4: 取暖费 | O4: 物业管理费 | P4: 差旅费 | Q4: 因公出国（境）费用 | R4: 维修(护)费 | S4: 租赁费 | T4: 会议费 | U4: 培训费 | V4: 公务接待费 | W4: 专用材料费 | X4: 被装购置费 | Y4: 专用燃料费 | Z4: 劳务费 | AA4: 委托业务费 | AB4: 工会经费 | AC4: 福利费 | AD4: 公务用车运行维护费 | AE4: 其他交通费用 | AF4: 税金及附加费用 | AG4: 其他商品和服务支出
A5: 类 | B5: 款 | C5: 项
E6: 合计 | F6: =F7 -> 333.58 | G6: =G7 -> 26.70 | H6: 6.91 | I6: 0.00 | J6: 0.00 | K6: 3.72 | L6: 19.38 | M6: 8.72 | N6: 0.00 | O6: 5.39 | P6: 9.38 | Q6: 0.00 | R6: 2.00 | S6: 0.00 | T6: 10.61 | U6: 13.16 | V6: 17.92 | W6: 0.00 | X6: 0.00 | Y6: 0.00 | Z6: 0.00 | AA6: 0.00 | AB6: 0.00 | AC6: 0.00 | AD6: 0.00 | AE6: 136.54 | AF6: 0.00 | AG6: 73.14
D7: 414 | E7: 岳阳县交通运输局 | F7: =F8+F10+F12+F14+F17+F19+F21+F23 -> 333.58 | G7: =G8+G10+G12+G14+G17+G19+G21+G23 -> 26.70 | H7: 6.91 | I7: 0.00 | J7: 0.00 | K7: 3.72 | L7: 19.38 | M7: 8.72 | N7: 0.00 | O7: 5.39 | P7: 9.38 | Q7: 0.00 | R7: 2.00 | S7: 0.00 | T7: 10.61 | U7: 13.16 | V7: 17.92 | W7: 0.00 | X7: 0.00 | Y7: 0.00 | Z7: 0.00 | AA7: 0.00 | AB7: 0.00 | AC7: 0.00 | AD7: 0.00 | AE7: 136.54 | AF7: 0.00 | AG7: 73.14
D8: 414001 | E8: 岳阳县交通运输局 | F8: 62.47 | G8: 2.81 | H8: 1.26 | K8: 0.68 | L8: 2.32 | M8: 5.91 | O8: 2.98 | P8: 4.64 | R8: 0.77 | T8: 2.85 | U8: 1.38 | V8: 3.69 | AE8: 31.34 | AG8: 1.83
A9: 214 | B9: 01 | C9: 01 | D9: 414001 | E9: 行政运行 | F9: 62.47 | G9: 2.81 | H9: 1.26 | K9: 0.68 | L9: 2.32 | M9: 5.91 | O9: 2.98 | P9: 4.64 | R9: 0.77 | T9: 2.85 | U9: 1.38 | V9: 3.69 | AE9: 31.34 | AG9: 1.83
D10: 414002 | E10: 岳阳县道路运输管理所 | F10: 64.38 | G10: 8.03 | K10: 0.53 | L10: 5.60 | T10: 5.00 | U10: 5.00 | V10: 5.00 | AE10: 35.22
A11: 201 | B11: 04 | C11: 01 | D11: 414002 | E11: 行政运行 | F11: 64.38 | G11: 8.03 | K11: 0.53 | L11: 5.60 | T11: 5.00 | U11: 5.00 | V11: 5.00 | AE11: 35.22
D12: 414003 | E12: 岳阳县交通工程质量和安全监督管理站 | F12: 7.20 | G12: 2.00 | L12: 0.24 | U12: 0.50 | V12: 0.50 | AE12: 3.96
A13: 214 | B13: 01 | C13: 01 | D13: 414003 | E13: 行政运行 | F13: 7.20 | G13: 2.00 | L13: 0.24 | U13: 0.50 | V13: 0.50 | AE13: 3.96
D14: 414004 | E14: 岳阳县港口航务管理所 | F14: =SUM(G14:AG14) -> 101.49 | G14: =G15+G16 -> 2.48 | H14: 2.63 | I14: 0.00 | J14: 0.00 | K14: 1.11 | L14: 4.52 | M14: 2.75 | N14: 0.00 | O14: 2.41 | P14: 3.56 | Q14: 0.00 | R14: 0.73 | S14: 0.00 | T14: 2.00 | U14: 1.78 | V14: 3.63 | W14: 0.00 | X14: 0.00 | Y14: 0.00 | Z14: 0.00 | AA14: 0.00 | AB14: 0.00 | AC14: 0.00 | AD14: 0.00 | AE14: 24.08 | AF14: 0.00 | AG14: 49.81
A15: 214 | B15: 01 | C15: 01 | D15: 414004 | E15: 行政运行 | F15: 52.88 | G15: =2+0.4809 -> 2.48 | H15: =2+0.6276 -> 2.63 | K15: =0.36+0.75 -> 1.11 | L15: =2+2.52 -> 4.52 | M15: =2+0.75 -> 2.75 | O15: 2.41 | P15: =1+2.5609 -> 3.56 | R15: 0.73 | T15: 2.00 | U15: =1+0.784 -> 1.78 | V15: =3+0.627 -> 3.63 | AD15: 0.00 | AE15: 24.08 | AG15: =1+0.203906 -> 1.20
A16: 214 | B16: 01 | C16: 23 | D16: 414004 | E16: 航道维护 | F16: 48.61 | AG16: 48.61
D17: 414005 | E17: 岳阳县城市公共交通执法大队 | F17: 18.72 | G17: 2.14 | K17: 0.30 | L17: 1.20 | U17: 3.00 | V17: 2.00 | AE17: 10.08
A18: 214 | B18: 01 | C18: 01 | D18: 414005 | E18: 行政运行 | F18: 18.72 | G18: 2.14 | K18: 0.30 | L18: 1.20 | U18: 3.00 | V18: 2.00 | AE18: 10.08
D19: 414006 | E19: 岳阳县交通运输综合行政执法大队 | F19: 16.86 | G19: 1.40 | H19: 1.02 | K19: 0.60 | L19: 1.50 | P19: 0.88 | R19: 0.50 | T19: 0.56 | V19: 0.60 | AE19: 9.30 | AG19: 0.50
A20: 214 | B20: 01 | C20: 12 | D20: 414006 | E20: 公路运输管理 | F20: 16.86 | G20: 1.40 | H20: 1.02 | K20: 0.60 | L20: 1.50 | P20: 0.88 | R20: 0.50 | T20: 0.56 | V20: 0.60 | AE20: 9.30 | AG20: 0.50
D21: 414007 | E21: 岳阳县超限治理站 | F21: =SUM(G21:AG21) -> 37.38 | G21: 2.00 | H21: 2.00 | L21: 2.00 | M21: 0.06 | P21: 0.30 | T21: 0.20 | U21: 0.50 | V21: 0.50 | AE21: 8.82 | AG21: =AG22 -> 21.00
A22: 214 | B22: 01 | C22: 12 | D22: 414007 | E22: 公路运输管理 | F22: =SUM(G22:AG22) -> 37.38 | G22: 2.00 | H22: 2.00 | L22: 2.00 | M22: 0.06 | P22: 0.30 | T22: 0.20 | U22: 0.50 | V22: 0.50 | AE22: 8.82 | AG22: 21.00
D23: 414008 | E23: 岳阳县农村公路养护中心 | F23: 25.08 | G23: 5.84 | K23: 0.50 | L23: 2.00 | U23: 1.00 | V23: 2.00 | AE23: 13.74
A24: 214 | B24: 01 | C24: 01 | D24: 414008 | E24: 行政运行 | F24: 25.08 | G24: 5.84 | K24: 0.50 | L24: 2.00 | U24: 1.00 | V24: 2.00 | AE24: 13.74

Sheet 15三公
G1: 部门公开表15
A2: 一般公共预算“三公”经费支出表
A3: 单位：414岳阳县交通运输局 | H3: 金额单位：万元
A4: 单位编码 | B4: 单位名称 | C4: “三公”经费合计 | D4: 因公出国（境）费 | E4: 公务用车购置及运行费 | H4: 公务接待费
E5: 小计 | F5: 公务用车购置费 | G5: 公务用车运行费
B6: 合计 | C6: =C7 -> 16.50 | H6: =H7 -> 16.50
A7: 414 | B7: 岳阳县交通运输局 | C7: =SUM(C8:C15) -> 16.50 | H7: =SUM(H8:H15) -> 16.50
A8: 414001 | B8: 岳阳县交通运输局 | C8: 2.30 | H8: 2.30
A9: 414002 | B9: 岳阳县道路运输管理所 | C9: 5.00 | H9: 5.00
A10: 414003 | B10: 岳阳县交通工程质量和安全监督管理站 | C10: 0.50 | H10: 0.50
A11: 414004 | B11: 岳阳县港口航务管理所 | C11: =H11 -> 3.00 | H11: 3.00
A12: 414005 | B12: 岳阳县城市公共交通执法大队 | C12: 2.00 | H12: 2.00
A13: 414006 | B13: 岳阳县交通运输综合行政执法大队 | C13: 1.20 | H13: 1.20
A14: 414007 | B14: 岳阳县超限治理站 | C14: 0.50 | H14: 0.50
A15: 414008 | B15: 岳阳县农村公路养护中心 | C15: 2.00 | H15: 2.00

Sheet 16政府性基金
G1: 部门公开表16
A2: 政府性基金预算支出表
A3: 单位：414岳阳县交通运输局 | H3: 金额单位：万元
A4: 科目编码 | B4: 科目名称 | C4: 合计 | D4: 本年政府性基金预算支出 | H4: 项目支出
D5: 小计 | E5: 人员经费 | G5: 公用经费
E6: 工资福利支出 | F6: 对个人和家庭的补助
B7: 合计 | C7: =C8+C9 -> 631.10 | H7: =H8+H9 -> 631.10
A8: 2120804 | B8: 农村基础设施建设支出 | C8: 500.00 | H8: 500.00
A9: 2120899 | B9: 其他国有土地使用权出让收入安排的支出 | C9: 131.10 | H9: 131.10

Sheet 17政府性基金(政府预算)
S1: 部门公开表17
A2: 政府性基金预算支出分类汇总表（按政府预算经济分类）
A3: 单位：414岳阳县交通运输局 | S3: 金额单位：万元
A4: 功能科目 | D4: 单位代码 | E4: 单位名称（功能科目） | F4: 总 计 | G4: 机关工资福利支出 | H4: 机关商品和服务支出 | I4: 机关资本性支出(一) | J4: 机关资本性支出(二) | K4: 对事业单位经常性补助 | L4: 对事业单位资本性补助 | M4: 对企业补助 | N4: 对企业资本性支出 | O4: 对个人和家庭的补助 | P4: 对社会保障基金补助 | Q4: 债务利息及费用支出 | R4: 债务还本支出 | S4: 转移性支出 | T4: 其他支出
A5: 类 | B5: 款 | C5: 项
E6: 合计 | F6: 631.10 | L6: 631.10
D7: 414 | E7: 岳阳县交通运输局 | F7: 631.10 | L7: 631.10
D8: 414008 | E8: 岳阳县农村公路养护中心 | F8: 631.10 | L8: 631.10
A9: 212 | B9: 08 | C9: 04 | D9: 414008 | E9: 农村基础设施建设支出 | F9: 500.00 | L9: 500.00
A10: 212 | B10: 08 | C10: 99 | D10: 414008 | E10: 其他国有土地使用权出让收入安排的支出 | F10: 131.10 | L10: 131.10

Sheet 18政府性基金（部门预算）
S1: 部门公开表18
A2: 政府性基金预算支出分类汇总表（按部门预算经济分类）
A3: 单位：414岳阳县交通运输局 | S3: 金额单位：万元
A4: 功能科目 | D4: 单位代码 | E4: 单位名称（功能科目） | F4: 总 计 | G4: 基本支出 | K4: 项目支出
A5: 类 | B5: 款 | C5: 项 | G5: 合计 | H5: 工资福利支出 | I5: 一般商品和服务支出 | J5: 对个人和家庭的补助 | K5: 合计 | L5: 按项目管理的商品和服务支出 | M5: 按项目管理的对个人和家庭的补助 | N5: 债务利息及费用支出 | O5: 资本性支出（基本建设） | P5: 资本性支出 | Q5: 对企业补助（基本建设） | R5: 对企业补助 | S5: 对社会保障基金补助 | T5: 其他支出
E6: 合计 | F6: 631.10 | P6: 631.10
D7: 414 | E7: 岳阳县交通运输局 | F7: 631.10 | P7: 631.10
D8: 414008 | E8: 岳阳县农村公路养护中心 | F8: 631.10 | P8: 631.10
A9: 212 | B9: 08 | C9: 04 | D9: 414008 | E9: 农村基础设施建设支出 | F9: 500.00 | P9: 500.00
A10: 212 | B10: 08 | C10: 99 | D10: 414008 | E10: 其他国有土地使用权出让收入安排的支出 | F10: 131.10 | P10: 131.10

Sheet 19国有资本经营预算
H1: 部门公开表19
A2: 国有资本经营预算支出表
A3: 单位：414岳阳县交通运输局 | H3: 金额单位：万元
A4: 科目编码 | B4: 科目名称 | C4: 合计 | D4: 本年国有资本经营预算支出 | H4: 项目支出
D5: 小计 | E5: 人员经费 | G5: 公用经费
E6: 工资福利支出 | F6: 对个人和家庭的补助
B7: 合计 | C7: 0.00

Sheet 20财政专户管理资金
H1: 部门公开表20
A2: 财政专户管理资金预算支出表
A3: 单位：414岳阳县交通运输局 | H3: 金额单位：万元
A4: 科目编码 | B4: 科目名称 | C4: 合计 | D4: 本年财政专户管理资金预算支出 | H4: 项目支出
D5: 小计 | E5: 人员经费 | G5: 公用经费
E6: 工资福利支出 | F6: 对个人和家庭的补助
B7: 合计 | C7: 0.00

Sheet 21专项清单
M1: 部门公开表21
A2: 专项资金预算汇总表
A3: 单位：414岳阳县交通运输局 | M3: 金额单位：万元
A4: 单位代码 | B4: 单位名称（专项名称） | C4: 预算额度 | M4: 预算编制方式
C5: 总计 | D5: 一般公共预算 | J5: 政府性基金 | K5: 国有资本经营预算 | L5: 社会保险基金预算资金 | M5: 编入部门预算金额 | N5: 财政代编金额
D6: 一般公共预算小计 | E6: 经费拨款 | F6: 纳入一般公共预算管理的非税收入 | G6: 一般债券 | H6: 外国政府和国际组织贷款 | I6: 外国政府和国际组织赠款
B7: 合计 | C7: =C8 -> 3,879.71 | D7: =D8 -> 3,248.61 | E7: 2,622.61 | F7: 626.00 | G7: 0.00 | H7: 0.00 | I7: 0.00 | J7: 631.10 | K7: 0.00 | L7: 0.00 | M7: 3,879.71 | N7: 0.00
A8: 414 | B8: 岳阳县交通运输局 | C8: =SUM(C9:C29) -> 3,879.71 | D8: =SUM(D9:D29) -> 3,248.61 | E8: 2,622.61 | F8: 626.00 | G8: 0.00 | H8: 0.00 | I8: 0.00 | J8: 631.10 | K8: 0.00 | L8: 0.00 | M8: 3,879.71 | N8: 0.00
A9: 414001 | B9: 春运 | C9: 7.00 | D9: 7.00 | E9: 7.00 | M9: 7.00
A10: 414001 | B10: 会议费 | C10: 4.50 | D10: 4.50 | E10: 4.50 | M10: 4.50
A11: 414001 | B11: 交通运输管理经费及项目经费 | C11: 928.55 | D11: 928.55 | E11: 928.55 | M11: 928.55
A12: 414001 | B12: 交通战备物资 | C12: 6.00 | D12: 6.00 | E12: 6.00 | M12: 6.00
A13: 414001 | B13: 民桥民渡 | C13: 27.40 | D13: 27.40 | E13: 27.40 | M13: 27.40
A14: 414002 | B14: 打非治违专项经费 | C14: 346.42 | D14: 346.42 | E14: 256.42 | F14: 90.00 | M14: 346.42
A15: 414002 | B15: 道路运输管理 | C15: 134.00 | D15: 134.00 | F15: 134.00 | M15: 134.00
A16: 414003 | B16: 交通工程质量和安全监督经费 | C16: 36.73 | D16: 36.73 | E16: 36.73 | M16: 36.73
A17: 414004 | B17: 港口航务管理经费 | C17: =D17+J17+K17+L17 -> 129.86 | D17: =SUM(E17:I17) -> 129.86 | E17: 129.86 | M17: 129.86
A18: 414004 | B18: 公务船运行维护费 | C18: 364.05 | D18: 364.05 | E18: =174+10.049593 -> 184.05 | F18: 180.00 | M18: =C18 -> 364.05
A19: 414004 | B19: 海事管理及应急救援经费 | C19: 20.00 | D19: 20.00 | E19: 20.00 | M19: 20.00
A20: 414005 | B20: 城市公共交通执法经费 | C20: 48.53 | D20: 48.53 | E20: 48.53 | M20: 48.53
A21: 414005 | B21: 客运市场整治 | C21: 26.00 | D21: 26.00 | E21: 26.00 | M21: 26.00
A22: 414006 | B22: 公路巡查及公路执法 | C22: 90.00 | D22: 90.00 | E22: 53.00 | F22: 37.00 | M22: 90.00
A23: 414006 | B23: 交通运输综合行政执法经费 | C23: 35.76 | D23: 35.76 | E23: 35.76 | M23: 35.76
A24: 414007 | B24: 超载超限治理项目 | C24: 185.00 | D24: 185.00 | F24: 185.00 | M24: 185.00
A25: 414008 | B25: 农村公路维修与养护经费 | C25: 1,489.91 | D25: 858.81 | E25: 858.81 | J25: 631.10 | M25: 1,489.91

Sheet 22项目支出绩效目标表
M1: 部门公开表22
C2: 项目支出绩效目标表
A3: 单位：414岳阳县交通运输局 | L3: 金额单位：万元
A4: 单位代码 | B4: 单位（专项）名称 | C4: 资金总额 | D4: 实施期绩效目标 | E4: 绩效指标
E5: 一级指标 | F5: 二级指标 | G5: 三级指标 | H5: 指标值 | I5: 指标值内容 | J5: 评（扣分标准） | K5: 度量单位 | L5: 指标值类型 | M5: 备注
A6: 414 | B6: 岳阳县交通运输局 | C6: =C7+C58+C79+C90+C121+C142+C163+C174 -> 3,879.71
A7: 414001 | B7: 岳阳县交通运输局 | C7: 973.45
A8: 414001 | B8: 春运 | C8: 7.00 | D8: 保证项目运转 | E8: 产出指标 | F8: 时效指标 | G8: 完成时间 | H8: 春运期内40-50天 | I8: 项目完成时间 | J8: 未达标准酌情扣分 | K8: 天 | L8: 定量
F9: 数量指标 | G9: 安全培训宣传次数 | H9: ≥3 | I9: 举办安全培训会、制作安全宣传品 | J9: 未达标准酌情扣分 | K9: 次 | L9: 定量
F10: 质量指标 | G10: 运行效率 | H10: 高效 | I10: 运行效率 | J10: 未达标准酌情扣分 | K10: 无 | L10: 定性
E11: 效益指标 | F11: 经济效益指标 | G11: 无 | H11: 无 | I11: 无 | J11: 无 | K11: 无 | L11: 定性
F12: 生态效益指标 | G12: 无 | H12: 无 | I12: 无 | J12: 无 | K12: 无 | L12: 定性
F13: 社会效益指标 | G13: 春运期间道路安全率 | H13: ≥99% | I13: 春运期间道路安全、健康、通畅、温馨 | J13: 未达标准酌情扣分 | K13: % | L13: 定量
E14: 满意度指标 | F14: 服务对象满意度指标 | G14: 服务对象满意度 | H14: ≥95% | I14: 服务对象满意 | J14: 未达标准酌情扣分 | K14: % | L14: 定量
E15: 成本指标 | F15: 经济成本指标 | G15: 预算控制数 | H15: ≤8 | I15: 预算数 | J15: 未达标准酌情扣分 | K15: 元 | L15: ≤
F16: 社会成本指标 | G16: 无 | H16: 无 | I16: 无 | J16: 无 | K16: 无 | L16: 定性
F17: 生态环境成本指标 | G17: 无 | H17: 无 | I17: 无 | J17: 无 | K17: 无 | L17: 定性
A18: 414001 | B18: 会议费 | C18: 4.50 | D18: 会议费 | E18: 成本指标 | F18: 经济成本指标 | G18: 会议费 | H18: ≤45000 | I18: 会议费 | J18: 未达指标值的按标准扣分 | K18: 元 | L18: ≤
F19: 生态环境成本指标 | G19: 无 | H19: 无 | I19: 无 | J19: 未达指标值的按标准扣分 | K19: 无 | L19: 定量
F20: 社会成本指标 | G20: 无 | H20: 无 | I20: 无 | J20: 未达指标值的按标准扣分 | K20: 无 | L20: 定量
E21: 效益指标 | F21: 生态效益指标 | G21: 无 | H21: 无 | I21: 无 | J21: 未达指标值的按标准扣分 | K21: 无 | L21: 定性
F22: 社会效益指标 | G22: 按会议精神落实到位 | H22: 100% | I22: 会议精神100%传达落实 | J22: 未达指标值的按标准扣分 | K22: % | L22: 定量
F23: 经济效益指标 | G23: 无 | H23: 无 | I23: 无 | J23: 未达指标值的按标准扣分 | K23: 无 | L23: 定量
E24: 满意度指标 | F24: 服务对象满意度指标 | G24: 服务对象满意度 | H24: ≥95% | I24: 满意 | J24: 未达指标值的按标准扣分 | K24: % | L24: ≥
E25: 产出指标 | F25: 质量指标 | G25: 会议标准 | H25: 高质量 | I25: 高质量高标准完成 | J25: 未达指标值的按标准扣分 | K25: 无 | L25: 定性
F26: 数量指标 | G26: 会议次数 | H26: 30次 | I26: 全年召开会议30次 | J26: 未达指标值的按标准扣分 | K26: 次 | L26: 定量
F27: 时效指标 | G27: 会议完成时间 | H27: 1年 | I27: 12月底完成 | J27: 未达指标值的按标准扣分 | K27: 年 | L27: 定量
A28: 414001 | B28: 交通运输管理经费及项目经费 | C28: 928.56 | D28: 交通运输管理经费及项目经费 | E28: 产出指标 | F28: 数量指标 | G28: 项目个数 | H28: 1 | I28: 项目完成数 | J28: 未达标准酌情扣分 | K28: 个 | L28: 定量
F29: 质量指标 | G29: 单位运行效率 | H29: 高效 | I29: 单位运行效率 | J29: 未达标准酌情扣分 | K29: 无 | L29: 定性
F30: 时效指标 | G30: 完成时间 | H30: 本财政年度完成 | I30: 项目完成时间 | J30: 未达标准酌情扣分 | K30: 年 | L30: 定量
E31: 成本指标 | F31: 生态环境成本指标 | G31: 无 | H31: 无 | I31: 无 | J31: 无 | K31: 无 | L31: 定性
F32: 社会成本指标 | G32: 无 | H32: 无 | I32: 无 | J32: 未达标准酌情扣分 | K32: 无 | L32: 定性
F33: 经济成本指标 | G33: 预算控制数 | H33: ≤98.76 | I33: 预算数 | J33: 未达标准酌情扣分 | K33: 元 | L33: ≤
E34: 满意度指标 | F34: 服务对象满意度指标 | G34: 服务对象满意 | H34: ≥95% | I34: 服务对象满意 | J34: 未达标准酌情扣分 | K34: % | L34: 定量
E35: 效益指标 | F35: 生态效益指标 | G35: 无 | H35: 无 | I35: 无 | J35: 无 | K35: 无 | L35: 定性
F36: 社会效益指标 | G36: 提高公路市场运输管理水平 | H36: 逐年提高 | I36: 公路市场运输管理水平 | J36: 未达标准酌情扣分 | K36: % | L36: 定量
F37: 经济效益指标 | G37: 无 | H37: 无 | I37: 无 | J37: 无 | K37: 无 | L37: 定性
A38: 414001 | B38: 交通战备物资 | C38: 6.00 | D38: 保证项目运转 | E38: 效益指标 | F38: 经济效益指标 | G38: 无 | H38: 无 | I38: 无 | J38: 无 | K38: 无 | L38: 定性
F39: 生态效益指标 | G39: 无 | H39: 无 | I39: 无 | J39: 无 | K39: 无 | L39: 定性
F40: 社会效益指标 | G40: 国防教育普及宣传完成率 | H40: 100% | I40: 国防教育日向县城居民开展普及国防教育、宣传爱国精神、发放宣传手册等 | J40: 未达标准酌情扣分 | K40: % | L40: 定量
E41: 产出指标 | F41: 时效指标 | G41: 培训完成时间 | H41: 本年度完成 | I41: 完成时间 | J41: 未达标准酌情扣分 | K41: 年 | L41: 定量
F42: 质量指标 | G42: 学习培训完成率 | H42: 100% | I42: 分批配合民兵集训工作 | J42: 未达标准酌情扣分 | K42: % | L42: 定量
F43: 数量指标 | G43: 学习培训次数 | H43: ≥4 | I43: 学习培训次数 | J43: 未达标准酌情扣分 | K43: 次 | L43: 定量
E44: 成本指标 | F44: 生态环境成本指标 | G44: 无 | H44: 无 | I44: 无 | J44: 无 | K44: 无 | L44: 定性
F45: 社会成本指标 | G45: 无 | H45: 无 | I45: 无 | J45: 无 | K45: 无 | L45: 定性
F46: 经济成本指标 | G46: 预算控制数 | H46: ≤6 | I46: 预算数 | J46: 未达标准酌情扣分 | K46: 元 | L46: ≤
E47: 满意度指标 | F47: 服务对象满意度指标 | G47: 服务对象满意度 | H47: ≥95% | I47: 服务对象满意 | J47: 未达标准酌情扣分 | K47: % | L47: 定量
A48: 414001 | B48: 民桥民渡 | C48: 27.40 | D48: 保证项目运转 | E48: 效益指标 | F48: 生态效益指标 | G48: 无 | H48: 无 | I48: 无 | J48: 未过到评判标准扣分 | K48: 无 | L48: 定性
F49: 经济效益指标 | G49: 无 | H49: 无 | I49: 无 | J49: 未过到评判标准扣分 | K49: 无 | L49: 定性
F50: 社会效益指标 | G50: 民桥民桥通畅率 | H50: 28个 | I50: 民桥民渡畅通保证百姓安全出行 | J50: 未过到评判标准扣分 | K50: 个 | L50: 定量
E51: 产出指标 | F51: 质量指标 | G51: 按财政预算批复 | H51: 100% | I51: 民桥民渡养护经费 | J51: 未过到评判标准扣分 | K51: % | L51: 定性
F52: 数量指标 | G52: 民桥民渡数量 | H52: 28个 | I52: 民桥民渡经费 | J52: 未过到评判标准扣分 | K52: 个 | L52: 定量
F53: 时效指标 | G53: 2022年 | H53: 半年 | I53: 半年度发放 | J53: 未过到评判标准扣分 | K53: 年 | L53: 定性
E54: 成本指标 | F54: 生态环境成本指标 | G54: 无 | H54: 无 | I54: 无 | J54: 未过到评判标准扣分 | K54: 无 | L54: 定性
F55: 经济成本指标 | G55: 民桥民渡养护 | H55: ≤444000 | I55: 民桥民渡养护 | J55: 未过到评判标准扣分 | K55: 元 | L55: ≤
F56: 社会成本指标 | G56: 无 | H56: 无 | I56: 无 | J56: 未过到评判标准扣分 | K56: 无 | L56: 定性
E57: 满意度指标 | F57: 服务对象满意度指标 | G57: 群众满意度 | H57: 100% | I57: 满意 | J57: 未过到评判标准扣分 | K57: 分 | L57: ≥
A58: 414002 | B58: 岳阳县道路运输管理所 | C58: 480.42
A59: 414002 | B59: 打非治违专项经费 | C59: 346.42 | D59: 岳阳县道路运输管理所其他人员运转经费 | E59: 成本指标 | F59: 经济成本指标 | G59: 预算控制数 | H59: ≤347.10 | I59: 预算数 | J59: 未达标准酌情扣分 | K59: 元 | L59: ≤
F60: 社会成本指标 | G60: 无 | H60: 无 | I60: 无 | J60: 未达标准酌情扣分 | K60: 无 | L60: 定性
F61: 生态环境成本指标 | G61: 无 | H61: 无 | I61: 无 | J61: 无 | K61: 无 | L61: 定性
E62: 满意度指标 | F62: 服务对象满意度指标 | G62: 服务对象满意 | H62: ≥95% | I62: 服务对象满意 | J62: 未达标准酌情扣分 | K62: % | L62: 定量
E63: 效益指标 | F63: 生态效益指标 | G63: 无 | H63: 无 | I63: 无 | J63: 无 | K63: 无 | L63: 定性
F64: 社会效益指标 | G64: 提高道路运输管理水平 | H64: 逐年提高 | I64: 道路运输管理水平 | J64: 未达标准酌情扣分 | K64: % | L64: 定量
F65: 经济效益指标 | G65: 无 | H65: 无 | I65: 无 | J65: 无 | K65: 无 | L65: 定性
E66: 产出指标 | F66: 时效指标 | G66: 完成时间 | H66: 本财政年度完成 | I66: 项目完成时间 | J66: 未达标准酌情扣分 | K66: 年 | L66: 定量
F67: 质量指标 | G67: 单位运行效率 | H67: 高效 | I67: 单位运行效率 | J67: 未达标准酌情扣分 | K67: 无 | L67: 定性
F68: 数量指标 | G68: 项目个数 | H68: 1 | I68: 项目完成数 | J68: 未达标准酌情扣分 | K68: 个 | L68: 定量
A69: 414002 | B69: 道路运输管理 | C69: 134.00 | D69: 保障全县道路运输市场管理工作的顺利开展 | E69: 成本指标 | F69: 经济成本指标 | G69: 执法成本 | H69: ≤1340000 | I69: 执法成本 | J69: 未达指标值扣分 | K69: 元 | L69: ≤
F70: 生态环境成本指标 | G70: 无 | H70: 无 | I70: 无 | J70: 无 | K70: 无 | L70: 定性
F71: 社会成本指标 | G71: 无 | H71: 无 | I71: 无 | J71: 无 | K71: 无 | L71: 定性
E72: 效益指标 | F72: 生态效益指标 | G72: 保护道路运输生态环境达标率 | H72: ≥90% | I72: 保护道路运输生态环境 | J72: 未达指标值扣分 | K72: % | L72: ≥
F73: 社会效益指标 | G73: 减少车辆事故的发生保障 | H73: ≤3% | I73: 减少车辆事故的发生 | J73: 未达指标值扣分 | K73: % | L73: ≤
F74: 经济效益指标 | G74: 提高道路运输业的合格率 | H74: ≥90% | I74: 提高道路运输业的合格率 | J74: 未达指标值扣分 | K74: % | L74: ≥
E75: 满意度指标 | F75: 服务对象满意度指标 | G75: 道路运输业主满意度 | H75: ≥90% | I75: 满意 | J75: 未达指标值扣分 | K75: % | L75: ≥
E76: 产出指标 | F76: 质量指标 | G76: 案件办结率 | H76: ≥90% | I76: 案件办结率 | J76: 未达指标值扣分 | K76: % | L76: ≥
F77: 数量指标 | G77: 查获违法车辆 | H77: 台 | I77: 2100台违法处理 | J77: 未达指标值扣分 | K77: 台 | L77: 定量
F78: 时效指标 | G78: 2022年案件办理时效 | H78: ≤3个月 | I78: 案件办理时效 | J78: 未达指标值扣分 | K78: 月 | L78: ≤
A79: 414003 | B79: 岳阳县交通工程质量和安全监督管理站 | C79: 36.73
A80: 414003 | B80: 交通工程质量和安全监督经费 | C80: 36.73 | D80: 保证单位正常运转 | E80: 成本指标 | F80: 经济成本指标 | G80: 预算控制数 | H80: ≤36.73 | I80: 预算数 | J80: 未达标准酌情扣分 | K80: 元 | L80: ≤
F81: 社会成本指标 | G81: 无 | H81: 无 | I81: 无 | J81: 未达标准酌情扣分 | K81: 无 | L81: 定性
F82: 生态环境成本指标 | G82: 无 | H82: 无 | I82: 无 | J82: 无 | K82: 无 | L82: 定性
E83: 产出指标 | F83: 数量指标 | G83: 项目个数 | H83: 1 | I83: 项目完成数 | J83: 未达标准酌情扣分 | K83: 个 | L83: 定量
F84: 时效指标 | G84: 完成时间 | H84: 本财政年度完成 | I84: 项目完成时间 | J84: 未达标准酌情扣分 | K84: 年 | L84: 定量
F85: 质量指标 | G85: 单位运行效率 | H85: 高效 | I85: 单位运行效率 | J85: 未达标准酌情扣分 | K85: 无 | L85: 定性
E86: 满意度指标 | F86: 服务对象满意度指标 | G86: 服务对象满意 | H86: ≥95% | I86: 服务对象满意 | J86: 未达标准酌情扣分 | K86: % | L86: 定量
E87: 效益指标 | F87: 经济效益指标 | G87: 无 | H87: 无 | I87: 无 | J87: 无 | K87: 无 | L87: 定性
F88: 社会效益指标 | G88: 提高交通工程质量检测水平 | H88: 逐年提高 | I88: 交通工程质量检测水平 | J88: 未达标准酌情扣分 | K88: % | L88: 定量
F89: 生态效益指标 | G89: 无 | H89: 无 | I89: 无 | J89: 无 | K89: 无 | L89: 定性
A90: 414004 | B90: 岳阳县港口航务管理所 | C90: =SUM(C91:C120) -> 513.91
A91: 414004 | B91: 港口航务管理经费 | C91: 129.86 | D91: 港口航务管理经费 | E91: 产出指标 | F91: 数量指标 | G91: 项目个数 | H91: 1 | I91: 项目完成数 | J91: 未达标准酌情扣分 | K91: 个 | L91: 定量
F92: 时效指标 | G92: 完成时间 | H92: 本财政年度完成 | I92: 项目完成时间 | J92: 未达标准酌情扣分 | K92: 年 | L92: 定量
F93: 质量指标 | G93: 单位运行效率 | H93: 高效 | I93: 单位运行效率 | J93: 未达标准酌情扣分 | K93: 年 | L93: 定量
E94: 成本指标 | F94: 生态环境成本指标 | G94: 无 | H94: 无 | I94: 无 | J94: 无未达标准酌情扣分 | K94: 无 | L94: 定性
F95: 社会成本指标 | G95: 无 | H95: 无 | I95: 无 | J95: 未达标准酌情扣分 | K95: 无 | L95: 定性
F96: 经济成本指标 | G96: 预算控制数 | H96: ≤129.86 | I96: 预算数 | J96: 未达标准酌情扣分 | K96: 元 | L96: ≤
E97: 满意度指标 | F97: 服务对象满意度指标 | G97: 服务对象满意 | H97: ≥95% | I97: 服务对象满意 | J97: 未达标准酌情扣分 | K97: % | L97: 定量
E98: 效益指标 | F98: 经济效益指标 | G98: 无 | H98: 无 | I98: 无 | J98: 未达标准酌情扣分 | K98: 无 | L98: 定性
F99: 社会效益指标 | G99: 提高水路运输管理水平 | H99: 逐年提高 | I99: 提高水路运输管理水平 | J99: 未达标准酌情扣分 | K99: % | L99: 定量
F100: 生态效益指标 | G100: 无 | H100: 无 | I100: 无 | J100: 未达标准酌情扣分 | K100: 无 | L100: 定性
A101: 414004 | B101: 公务船运行维护费 | C101: 364.05 | D101: 公务船运行维护费 | E101: 产出指标 | F101: 数量指标 | G101: 维修保养次数 | H101: ≥6次 | I101: 维修保养次数 | J101: 未达指标值酌情扣分 | K101: 次 | L101: 定量
F102: 质量指标 | G102: 维护质量 | H102: 高质量 | I102: 高标准高质量完成 | J102: 未达指标值酌情扣分 | K102: 无 | L102: 定性
F103: 时效指标 | G103: 完成时间 | H103: 1年 | I103: 12月完成 | J103: 未达指标值酌情扣分 | K103: 年 | L103: ≤
E104: 成本指标 | F104: 生态环境成本指标 | G104: 无 | H104: 无 | I104: 无 | J104: 未达指标值酌情扣分 | K104: 无 | L104: 定量
F105: 社会成本指标 | G105: 无 | H105: 无 | I105: 无 | J105: 未达指标值酌情扣分 | K105: 无 | L105: 定量
F106: 经济成本指标 | G106: 公务船运行成本 | H106: ≤374万 | I106: 运行成本 | J106: 未达指标值酌情扣分 | K106: 年 | L106: ≤
E107: 满意度指标 | F107: 服务对象满意度指标 | G107: 服务对象满意度指标 | H107: 社会公众满意度 | I107: ≥90% | J107: 未达指标值酌情扣分 | K107: % | L107: ≥
E108: 效益指标 | F108: 生态效益指标 | G108: 无 | H108: 无 | I108: 无 | J108: 未达指标值酌情扣分 | K108: 无 | L108: 定量
F109: 社会效益指标 | G109: 港口航道良性运行 | H109: 运转状态良好 | I109: 保障港口航道良性运行 | J109: 未达指标值酌情扣分 | K109: 无 | L109: ≤
F110: 经济效益指标 | G110: 无 | H110: 无 | I110: 无 | J110: 未达指标值酌情扣分 | K110: 无 | L110: 定性
A111: 414004 | B111: 海事管理及应急救援经费 | C111: 20.00 | D111: 海事管理及应急救援经费 | E111: 成本指标 | F111: 经济成本指标 | G111: 海事管理及救援成本 | H111: ≤20万 | I111: 救援成本 | J111: 未达指标值酌情扣分 | K111: 年 | L111: ≤
F112: 社会成本指标 | G112: 无 | H112: 无 | I112: 无 | J112: 未达指标值酌情扣分 | K112: 无 | L112: 定量
F113: 生态环境成本指标 | G113: 无 | H113: 无 | I113: 无 | J113: 未达指标值酌情扣分 | K113: 无 | L113: 定量
E114: 效益指标 | F114: 经济效益指标 | G114: 无 | H114: 无 | I114: 无 | J114: 未达指标值酌情扣分 | K114: 无 | L114: 定性
F115: 生态效益指标 | G115: 无 | H115: 无 | I115: 无 | J115: 未达指标值酌情扣分 | K115: 无 | L115: 定量
F116: 社会效益指标 | G116: 水上交通安全 | H116: 运行良好 | I116: 保障水上交通运行安全 | J116: 未达指标值酌情扣分 | K116: 无 | L116: ≤
E117: 产出指标 | F117: 时效指标 | G117: 完成时间 | H117: 1年 | I117: 12月完成 | J117: 未达指标值酌情扣分 | K117: 年 | L117: ≤
F118: 数量指标 | G118: 应急救援次数 | H118: ≥10次 | I118: 应急救援次数 | J118: 未达指标值酌情扣分 | K118: 次 | L118: 定量
F119: 质量指标 | G119: 救援质量 | H119: 高质量 | I119: 高标准高质量完成 | J119: 未达指标值酌情扣分 | K119: 无 | L119: 定性
E120: 满意度指标 | F120: 服务对象满意度指标 | G120: 服务对象满意度指标 | H120: 社会公众满意度 | I120: ≥90% | J120: 未达指标值酌情扣分 | K120: % | L120: ≥
A121: 414005 | B121: 岳阳县城市公共交通执法大队 | C121: 74.53
A122: 414005 | B122: 城市公共交通执法经费 | C122: 48.53 | D122: 城市公共交通执法经费 | E122: 效益指标 | F122: 生态效益指标 | G122: 无 | H122: 无 | I122: 无 | J122: 未达标准酌情扣分 | K122: 无 | L122: 定性
F123: 社会效益指标 | G123: 提高城市公共交通执法水平 | H123: 逐年提高 | I123: 城市公共交通执法水平 | J123: 未达标准酌情扣分 | K123: % | L123: 定性
F124: 经济效益指标 | G124: 无 | H124: 无 | I124: 无 | J124: 未达标准酌情扣分 | K124: 无 | L124: 定性
E125: 产出指标 | F125: 时效指标 | G125: 完成时间 | H125: 本财政年度完成 | I125: 项目完成时间 | J125: 未达标准酌情扣分 | K125: 年 | L125: 定量
F126: 数量指标 | G126: 项目个数 | H126: 1 | I126: 项目完成数 | J126: 未达标准酌情扣分 | K126: 个 | L126: 定量
F127: 质量指标 | G127: 单位运行效率 | H127: 高效 | I127: 单位运行效率 | J127: 未达标准酌情扣分 | K127: 无 | L127: 定性
E128: 满意度指标 | F128: 服务对象满意度指标 | G128: 服务对象满意 | H128: ≥95% | I128: 服务对象满意 | J128: 未达标准酌情扣分 | K128: % | L128: ≥
E129: 成本指标 | F129: 生态环境成本指标 | G129: 无 | H129: 无 | I129: 无 | J129: 未达标准酌情扣分 | K129: 无 | L129: 定性
F130: 社会成本指标 | G130: 无 | H130: 无 | I130: 无 | J130: 未达标准酌情扣分 | K130: 无 | L130: 定性
F131: 经济成本指标 | G131: 预算控制数 | H131: ≤48.53 | I131: 预算数 | J131: 未达标准酌情扣分 | K131: 元 | L131: ≤
A132: 414005 | B132: 客运市场整治 | C132: 26.00 | D132: 维护客运市场运行秩序，整治非法客运市场。 | E132: 满意度指标 | F132: 服务对象满意度指标 | G132: 服务对象满意 | H132: ≥95% | I132: 服务对象满意 | J132: 未达标准酌情扣分 | K132: % | L132: 定量
E133: 效益指标 | F133: 生态效益指标 | G133: 无 | H133: 无 | I133: 无 | J133: 无 | K133: 无 | L133: 定性
F134: 社会效益指标 | G134: 提高公交服务水平 | H134: 逐年提高 | I134: 交通公交服务水平 | J134: 未达标准酌情扣分 | K134: % | L134: 定性
F135: 经济效益指标 | G135: 无 | H135: 无 | I135: 无 | J135: 无 | K135: 无 | L135: 定量
E136: 产出指标 | F136: 时效指标 | G136: 完成时间 | H136: 本财政年度完成 | I136: 项目完成时间 | J136: 未达标准酌情扣分 | K136: 年 | L136: 定量
F137: 质量指标 | G137: 单位运行效率 | H137: 高效 | I137: 单位运行效率 | J137: 未达标准酌情扣分 | K137: 无 | L137: 定性
F138: 数量指标 | G138: 项目个数 | H138: 1 | I138: 项目完成数 | J138: 未达标准酌情扣分 | K138: 个 | L138: 定量
E139: 成本指标 | F139: 生态环境成本指标 | G139: 无 | H139: 无 | I139: 无 | J139: 无 | K139: 无 | L139: 定性
F140: 经济成本指标 | G140: 预算控制数 | H140: ≤39.58 | I140: 预算数 | J140: 预算数 | K140: 元 | L140: ≤
F141: 社会成本指标 | G141: 无 | H141: 无 | I141: 无 | J141: 未达标准酌情扣分 | K141: 无 | L141: 定性
A142: 414006 | B142: 岳阳县交通运输综合行政执法大队 | C142: 125.76
A143: 414006 | B143: 公路巡查及公路执法 | C143: 90.00 | D143: 保障全县公路巡查和执法项目的正常开展 | E143: 产出指标 | F143: 数量指标 | G143: 公路破坏或公路占用件/次 | H143: 127件次 | I143: 查处公路顽瘴痼疾 | J143: 未达标准酎情扣分 | K143: 次 | L143: 定量
F144: 质量指标 | G144: 案件办结率 | H144: ≥90% | I144: 案件办结率 | J144: 未达标准酎情扣分 | K144: % | L144: ≥
F145: 时效指标 | G145: 案件办理的时效 | H145: ≤60天 | I145: 办案期限 | J145: 未达标准酎情扣分 | K145: 天 | L145: 定量
E146: 成本指标 | F146: 生态环境成本指标 | G146: 路产路权维护 | H146: ≤103 | I146: 路产路权维护 | J146: 未达标准酎情扣分 | K146: 元 | L146: ≤
F147: 社会成本指标 | G147: 无 | H147: 无 | I147: 无 | J147: 无 | K147: 无 | L147: 定性
F148: 经济成本指标 | G148: 执法成本 | H148: ≤103 | I148: 执法成本 | J148: 执法成本超预算按指标值内容扣分 | K148: 元 | L148: ≤
E149: 满意度指标 | F149: 服务对象满意度指标 | G149: 服务对象满意度 | H149: 95% | I149: 服务对象满意度 | J149: 未达标准酎情扣分 | K149: % | L149: ≥
E150: 效益指标 | F150: 生态效益指标 | G150: 无 | H150: 无 | I150: 无 | J150: 无 | K150: 无 | L150: 定性
F151: 社会效益指标 | G151: 维护交通运输正常运行 | H151: ≥90% | I151: 维护交通运输正常运行 | J151: 未达标准酎情扣分 | K151: % | L151: ≥
F152: 经济效益指标 | G152: 减少道路破损 | H152: ≥500千米 | I152: 减少道路破损 | J152: 未达标准酎情扣分 | K152: 千米 | L152: 定量
A153: 414006 | B153: 交通运输综合行政执法经费 | C153: 35.76 | D153: 保证单位正常运转 | E153: 效益指标 | F153: 经济效益指标 | G153: 无 | H153: 无 | I153: 无 | J153: 无 | K153: 无 | L153: 定性
F154: 社会效益指标 | G154: 提高道路运输质量检测水平 | H154: 逐年提高 | I154: 道路运输质量检测水平 | J154: 未达标准酌情扣分 | K154: % | L154: 定量
F155: 生态效益指标 | G155: 无 | H155: 无 | I155: 无 | J155: 无 | K155: 无 | L155: 定性
E156: 产出指标 | F156: 时效指标 | G156: 单位运行效率 | H156: 高效 | I156: 单位运行效率 | J156: 未达标准酌情扣分 | K156: 无 | L156: 定性
F157: 质量指标 | G157: 完成时间 | H157: 本财政年度完成 | I157: 项目完成时间 | J157: 未达标准酌情扣分 | K157: 年 | L157: 定量
F158: 数量指标 | G158: 项目个数 | H158: 1 | I158: 无项目完成数 | J158: 未达标准酌情扣分 | K158: 个 | L158: 定量
E159: 成本指标 | F159: 生态环境成本指标 | G159: 无 | H159: 无 | I159: 无 | J159: 无 | K159: 无 | L159: 定性
F160: 经济成本指标 | G160: 预算控制数 | H160: ≤35.76 | I160: 预算数 | J160: 未达标准酌情扣分 | K160: 元 | L160: ≤
F161: 社会成本指标 | G161: 无 | H161: 无 | I161: 无 | J161: 未达标准酌情扣分 | K161: 无 | L161: 定性
E162: 满意度指标 | F162: 服务对象满意度指标 | G162: 服务对象满意度指标 | H162: 服务对象满意 | I162: ≥95% | J162: 未达标准酌情扣分 | K162: % | L162: 定量
A163: 414007 | B163: 岳阳县超限治理站 | C163: 185.00
A164: 414007 | B164: 超载超限治理项目 | C164: 185.00 | D164: 保障全县超载超限工作的开展 | E164: 成本指标 | F164: 经济成本指标 | G164: 执法成本 | H164: ≤2000000 | I164: 执法成本 | J164: 执法成本超预算按指标内容扣分 | K164: 元 | L164: ≤
F165: 社会成本指标 | G165: 无 | H165: 无 | I165: 无 | J165: 无 | K165: 无 | L165: 定量
F166: 生态环境成本指标 | G166: 源头企业超限治理 | H166: ≤200000 | I166: 源头企业超限治理 | J166: 未达标准酌情扣分 | K166: 元 | L166: ≤
E167: 产出指标 | F167: 数量指标 | G167: 查获超限车辆台次 | H167: 200台次 | I167: 查获超限车辆台次 | J167: 未达标准酌情扣分 | K167: 台 | L167: 定量
F168: 时效指标 | G168: 案件办理时效 | H168: ≤3个月 | I168: 办案期限 | J168: 未达标准酌情扣分 | K168: 月 | L168: 定量
F169: 质量指标 | G169: 案件办结率 | H169: ≥90% | I169: 案件办结率 | J169: 未达标准酌情扣分 | K169: % | L169: ≥
E170: 满意度指标 | F170: 服务对象满意度指标 | G170: 服务对象满意度指标 | H170: 服务对象满意度 | I170: ≥955% | J170: 服务对象满意度 | K170: % | L170: ≥
E171: 效益指标 | F171: 经济效益指标 | G171: 减少路面损毁 | H171: ≤100千米 | I171: 减少路面损毁 | J171: 未达标准酌情扣分 | K171: 千米 | L171: 定量
F172: 社会效益指标 | G172: 降低因超限引发的事故 | H172: ≤10% | I172: 降低因超限引发的事故 | J172: 未达标准酌情扣分 | K172: % | L172: ≤
F173: 生态效益指标 | G173: 无 | H173: 无 | I173: 无 | J173: 无 | K173: 无 | L173: 定量
A174: 414008 | B174: 岳阳县农村公路养护中心 | C174: 1,489.91
A175: 414008 | B175: 农村公路维修与养护经费 | C175: 1,489.91 | D175: 提高农村公路维修和养护水平 | E175: 成本指标 | F175: 经济成本指标 | G175: 预算控制数 | H175: ≤1489.91 | I175: 预算数 | J175: 未达标准酌情扣分 | K175: 元 | L175: 定量
F176: 社会成本指标 | G176: 无 | H176: 无 | I176: 无 | J176: 未达标准酌情扣分 | K176: 无 | L176: 定性
F177: 生态环境成本指标 | G177: 无 | H177: 无 | I177: 无 | J177: 未达标准酌情扣分 | K177: 无 | L177: 定性
E178: 产出指标 | F178: 数量指标 | G178: 项目个数 | H178: 1 | I178: 项目完成数 | J178: 未达标准酌情扣分 | K178: 个 | L178: 定量
F179: 时效指标 | G179: 完成时间 | H179: 本财政年度完成 | I179: 项目完成时间 | J179: 未达标准酌情扣分 | K179: 年 | L179: 定量
F180: 质量指标 | G180: 单位运行效率 | H180: 高效 | I180: 单位运行效率 | J180: 未达标准酌情扣分 | K180: 无 | L180: 定性
E181: 满意度指标 | F181: 服务对象满意度指标 | G181: 服务对象满意 | H181: ≥95% | I181: 服务对象满意 | J181: 未达标准酌情扣分 | K181: % | L181: 定性
E182: 效益指标 | F182: 经济效益指标 | G182: 无 | H182: 无 | I182: 无 | J182: 未达标准酌情扣分 | K182: 无 | L182: 定性
F183: 社会效益指标 | G183: 提高农村公路养护管理水平 | H183: 逐年提高 | I183: 农村公路养护管理水平 | J183: 未达标准酌情扣分 | K183: 无 | L183: 定性
F184: 生态效益指标 | G184: 无 | H184: 无 | I184: 无 | J184: 未达标准酌情扣分 | K184: 无 | L184: 定性

Sheet 23整体支出绩效目标表
S1: 部门公开表23
A2: 整体支出绩效目标表
A3: 单位：414岳阳县交通运输局
Q4: 金额单位：万元
A5: 单位编码 | B5: 单位名称 | C5: 年度预算申请 | J5: 整体绩效目标 | K5: 部门整体支出年度绩效目标
C6: 资金总额 | D6: 按收入性质分 | H6: 按支出性质分
D7: 一般公共预算 | E7: 政府性基金拨款 | F7: 财政专户管理资金 | G7: 其他资金 | H7: 基本支出 | I7: 项目支出 | K7: 一级指标 | L7: 二级指标 | M7: 三级指标 | N7: 指标值类型 | O7: 指标值 | P7: 计量单位 | Q7: 指标解释 | R7: 评（扣）分标准 | S7: 备注
A8: 414 | B8: 岳阳县交通运输局 | C8: =SUM(C9:C97) -> 6,376.52 | D8: =SUM(D9:D97) -> 5,645.42 | E8: 631.10 | F8: 0.00 | G8: 0.00 | H8: 2,496.81 | I8: 3,879.71
A9: 414001 | B9: 岳阳县交通运输局 | C9: 1,553.84 | D9: 1,553.84 | H9: 580.39 | I9: 973.45 | K9: 产出指标 | L9: 数量指标
L10: 质量指标
L11: 时效指标
L12: 成本指标
K13: 效益指标 | L13: 经济效益指标
L14: 社会效益指标
L15: 生态效益指标
L16: 可持续影响指标
K17: 满意度指标 | L17: 服务对象满意度指标
A18: 414002 | B18: 岳阳县道路运输管理所 | C18: 1,124.06 | D18: 1,024.06 | H18: 643.64 | I18: 480.42 | J18: 保障单位日常工作的正常运转、提高全县道路运输管理水平。 | K18: 产出指标 | L18: 数量指标 | M18: 数量指标 | R18: 未达指标值扣分
L19: 质量指标 | M19: 质量指标 | R19: 未达指标值扣分
L20: 时效指标 | M20: 时效指标 | R20: 未达指标值扣分
L21: 成本指标 | M21: 成本指标 | R21: 未达指标值扣分
K22: 效益指标 | L22: 经济效益指标 | M22: 经济效益指标 | R22: 未达指标值扣分
L23: 社会效益指标 | M23: 社会效益指标 | R23: 未达指标值扣分
L24: 生态效益指标 | M24: 生态效益指标 | R24: 未达指标值扣分
L25: 可持续影响指标 | M25: 可持续影响指标 | R25: 未达指标值扣分
K26: 满意度指标 | L26: 服务对象满意度指标 | M26: 服务对象满意度指标 | R26: 未达指标值扣分
A27: 414003 | B27: 岳阳县交通工程质量和安全监督管理站 | C27: 100.53 | D27: 100.53 | H27: 63.80 | I27: 36.73 | K27: 产出指标 | L27: 数量指标
L28: 质量指标
L29: 时效指标
L30: 成本指标
K31: 效益指标 | L31: 经济效益指标
L32: 社会效益指标
L33: 生态效益指标
L34: 可持续影响指标
K35: 满意度指标 | L35: 服务对象满意度指标
A36: 414004 | B36: 岳阳县港口航务管理所 | C36: =H36+I36 -> 954.11 | D36: =883.013172+71.099401 -> 954.11 | H36: =379.153172+61.049808 -> 440.20 | I36: =503.86+10.049593 -> 513.91 | K36: 产出指标 | L36: 数量指标
L37: 质量指标
L38: 时效指标
L39: 成本指标
K40: 效益指标 | L40: 经济效益指标
L41: 社会效益指标
L42: 生态效益指标
L43: 可持续影响指标
K44: 满意度指标 | L44: 服务对象满意度指标
A45: 414005 | B45: 岳阳县城市公共交通执法大队 | C45: =D45 -> 248.66 | D45: =H45+I45 -> 248.66 | H45: =160.808428+13.317244 -> 174.13 | I45: =74.53+0.000047 -> 74.53 | K45: 产出指标 | L45: 数量指标
L46: 质量指标
L47: 时效指标
L48: 成本指标
K49: 效益指标 | L49: 经济效益指标
L50: 社会效益指标
L51: 生态效益指标
L52: 可持续影响指标
K53: 满意度指标 | L53: 服务对象满意度指标
A54: 414006 | B54: 岳阳县交通运输综合行政执法大队 | C54: 311.84 | D54: 311.84 | H54: 186.08 | I54: 125.76 | K54: 产出指标 | L54: 数量指标
L55: 质量指标
L56: 时效指标
L57: 成本指标
K58: 效益指标 | L58: 经济效益指标
L59: 社会效益指标
L60: 生态效益指标
L61: 可持续影响指标
K62: 满意度指标 | L62: 服务对象满意度指标
A63: 414007 | B63: 岳阳县超限治理站 | C63: =D63 -> 349.06 | D63: =H63+I63 -> 349.06 | H63: =136.55699+27.5 -> 164.06 | I63: 185.00 | K63: 产出指标 | L63: 数量指标
L64: 质量指标
L65: 时效指标
L66: 成本指标
K67: 效益指标 | L67: 经济效益指标
L68: 社会效益指标
L69: 生态效益指标
L70: 可持续影响指标
K71: 满意度指标 | L71: 服务对象满意度指标
A72: 414008 | B72: 岳阳县农村公路养护中心 | C72: 1,734.42 | D72: 1,103.32 | E72: 631.10 | H72: 244.51 | I72: 1,489.91 | J72: 全面落实全县交通运输工作大会精神，以强抓队伍建设凝聚新活力，强抓行业管理展现新作为，强抓项目建设创造新业绩，强抓安全维稳彰显新担当，强抓文明创建树立新形象的工作要求，奋力开启农村公路养护中心工作新局面，加强全县农村公路的管理和养护,确保公路完好畅通,更好的为农村经济社会发展服务 | K72: 产出指标 | L72: 重点工作任务完成 | M72: 农村公路路面中修 | N72: ≥ | O72: 108 | P72: 公里 | Q72: 反映农村公路路面中修完成情况，完成率不到90%的不记分,满90%不到100%的扣除50%的得分,达到100%的记满分 | R72: 未达标准酌情扣分
M73: 顽瘴痼疾整治项目 | N73: ≥ | O73: 470 | P73: 公里 | Q73: 反映顽瘴痼疾整治项目完成情况，完成率不到90%的不记分,满90%不到100%的扣除50%的得分,达到100%的记满分 | R73: 未达标准酌情扣分
M74: 危桥改造 | N74: ≥ | O74: 22 | P74: 座 | Q74: 反映危桥改造完成情况，完成率不到90%的不记分,满90%不到100%的扣除50%的得分,达到100%的记满分 | R74: 未达标准酌情扣分
M75: 安防工程 | N75: ≥ | O75: 263 | P75: 公里 | Q75: 反映安防工程完成情况，完成率不到90%的不记分,满90%不到100%的扣除50%的得分,达到100%的记满分 | R75: 未达标准酌情扣分
K76: 效益指标 | L76: 履职目标实现 | M76: 年度目标实现率 | N76: ≥ | O76: 100 | P76: % | Q76: 年度目标实现率不到90%的不记分,满90%不到100%的扣除50%的得分,达到100%的记满分 | R76: 未达标准酌情扣分
L77: 履职效益 | M77: 社会效益指标农村公路畅通率 | N77: ≥ | O77: 100 | P77: % | Q77: 反映全县农村公路通畅状况 | R77: 未达标准酌情扣分
M78: 经济效益指标好路率 | N78: ≥ | O78: 95 | P78: % | Q78: 反映全县农村公路路况 | R78: 未达标准酌情扣分
M79: 经济效益指标公用支出控制率 | N79: ≥ | O79: 100 | P79: % | Q79: 反映公用支出控制情况 | R79: 未达标准酌情扣分
K80: 满意度指标 | L80: 满意度 | M80: 社会满意度 | N80: ≥ | O80: 95 | P80: % | Q80: 反映社会公众或服务对象在部门履职效果、解决民众关心的热点问题等方面的满意程度 | R80: 未达标准酌情扣分
